Workbook

Sheet Language

Sheet Exhib 2 (hidden)
F1: Tablet Project. P&L and Balance sheet Forecast
E3: Laptop | I3: Tablet Forecast
B4: P & L (mill €) | D4: Hypothesis | E4: 2023 | G4: 2025 | H4: =G4+1 -> 2026 | I4: =H4+1 -> 2027 | J4: =I4+1 -> 2028 | K4: =J4+1 -> 2029 | N4: Base | O4: Worst | P4: Best
B5: Sales | C5: =200 -> 200 | D5: (1) | E5: 200 | G5: =C5 -> 200 | H5: =G5*(1+H19) -> 220 | I5: =H5*(1+I19) -> 242 | J5: =I5*(1+J19) -> 266.2 | K5: =J5*(1+K19) -> 266.2 | N5: 200 | O5: 150 | P5: 250
B6: CGS | E6: 162 | G6: =(G5-G7) -> 160 | H6: =(H5-H7) -> 178.2 | I6: =(I5-I7) -> 198.44 | J6: =(J5-J7) -> 220.946 | K6: =(K5-K7) -> 226.27
B7: Gross Margin | D7: (2) | E7: =E5-E6 -> 38 | G7: =G5*G20 -> 40 | H7: =H5*H20 -> 41.8 | I7: =I5*I20 -> 43.56 | J7: =J5*J20 -> 45.254 | K7: =K5*K20 -> 39.93
B8: Sales expenses | C8: 0.05 | E8: =C$8*E5 -> 10 | G8: =$C8*G5 -> 10 | H8: =$C8*H5 -> 11 | I8: =$C8*I5 -> 12.1 | J8: =$C8*J5 -> 13.31 | K8: =$C8*K5 -> 13.31
B9: Opex or Overhead | C9: 8 | D9: (3) | E9: 8 | G9: =C9 -> 8 | H9: =G9*(1+H21) -> 8.24 | I9: =H9*(1+I21) -> 8.4872 | J9: =I9*(1+J21) -> 8.741816 | K9: =J9*(1+K21) -> 9.00407048
B10: EBITDA | E10: =E7-E8-E9 -> 20 | G10: =G7-G8-G9 -> 22 | H10: =H7-H8-H9 -> 22.56 | I10: =I7-I8-I9 -> 22.9728 | J10: =J7-J8-J9 -> 23.202184 | K10: =K7-K8-K9 -> 17.61592952
B11: Depreciation | C11: 2 | D11: (3) | E11: 5 | G11: =C11 -> 2 | H11: =$C11 -> 2 | I11: =$C11 -> 2 | J11: =$C11 -> 2 | K11: =$C11 -> 2
B12: EBIT | E12: =E10-E11 -> 15 | G12: =G10-G11 -> 20 | H12: =H10-H11 -> 20.56 | I12: =I10-I11 -> 20.9728 | J12: =J10-J11 -> 21.202184 | K12: =K10-K11 -> 15.61592952
B13: Financial expenses | C13: 0.05 | D13: (4) | E13: 2.5 | G13: =$C13*F36 -> 0.6 | H13: =$C13*G36 -> 2.05 | I13: =$C13*H36 -> 2.06 | J13: =$C13*I36 -> 2.086 | K13: =$C13*J36 -> 2.1296
B14: EBT | E14: =E12-E13 -> 12.5 | G14: =G12-G13 -> 19.4 | H14: =H12-H13 -> 18.51 | I14: =I12-I13 -> 18.9128 | J14: =J12-J13 -> 19.116184 | K14: =K12-K13 -> 13.48632952
B15: Taxes | C15: 0.25 | D15: (4) | E15: =C15*E14 -> 3.125 | G15: =$C$15*G14 -> 4.85 | H15: =$C$15*H14 -> 4.6275 | I15: =$C$15*I14 -> 4.7282 | J15: =$C$15*J14 -> 4.779046 | K15: =$C$15*K14 -> 3.37158238
B16: Net Income NI | E16: =E14-E15 -> 9.375 | G16: =G14-G15 -> 14.55 | H16: =H14-H15 -> 13.8825 | I16: =I14-I15 -> 14.1846 | J16: =J14-J15 -> 14.337138 | K16: =K14-K15 -> 10.11474714
B18: Ratios of the P&L | I18: Hypothesis (in bold and green) | N18: Base | O18: Worst | P18: Best
B19: Sales growth | C19: 0.1 | D19: (1) | E19: 0.1641285221 | G19: na | H19: =C19 -> 0.1 | I19: =H19 -> 0.1 | J19: =I19 -> 0.1 | K19: 0 | N19: 0.1 | O19: 0 | P19: 0.15
B20: Gross margin / Sales | C20: -0.01 | D20: (2) | E20: =E7/E5 -> 0.19 | G20: 0.2 | H20: =G20+$C20 -> 0.19 | I20: =H20+$C20 -> 0.18 | J20: =I20+$C20 -> 0.17 | K20: 0.15 | N20: -0.01 | O20: -0.02 | P20: 0
B21: Increase of Opex | C21: 0.03 | D21: (3) | E21: 0.05 | G21: =C21 -> 0.03 | H21: =G21 -> 0.03 | I21: =H21 -> 0.03 | J21: =I21 -> 0.03 | K21: =J21 -> 0.03
B22: Opex / Sales | G22: =G9/G5 -> 0.04 | H22: =H9/H5 -> 0.03745454545 | I22: =I9/I5 -> 0.03507107438 | J22: =J9/J5 -> 0.03283927874
B23: EBITDA / Sales | E23: =E10/E5 -> 0.1 | G23: =G10/G5 -> 0.11 | H23: =H10/H5 -> 0.1025454545 | I23: =I10/I5 -> 0.09492892562 | J23: =J10/J5 -> 0.08716072126 | K23: Average
B24: ROS (Net Income / Sales) | E24: =E16/E5 -> 0.046875 | G24: =G16/G5 -> 0.07275 | H24: =H16/H5 -> 0.06310227273 | I24: =I16/I5 -> 0.05861404959 | J24: =J16/J5 -> 0.05385851991 | K24: =AVERAGE(G24:K24) -> 0.06208121056
B25: ROE ( NI / Equity) | E25: =E16/(E37-E16) -> 0.2100840336 | G25: =G16/G37 -> 0.645232816 | H25: =H16/H37 -> 0.381047142 | I25: =I16/I37 -> 0.2802333599 | J25: =J16/J37 -> 0.2207267523 | K25: =AVERAGE(G25:K25) -> 0.3818100175 | Q25: ROE = | R25: ROS x | S25: Turnover | T25: x Levarage
B26: ROA (EBIT / Net assets) | E26: =E12/E32 -> 0.1898734177 | G26: =G12/G32 -> 0.3333333333 | H26: =H12/H32 -> 0.32125 | I26: =I12/I32 -> 0.306619883 | J26: =J12/J32 -> 0.2894891316 | K26: =AVERAGE(G26:K26) -> 0.312673087 | P26: Year 1 | Q26: =R26*S26*T26 -> 0.645232816 | R26: =G24 -> 0.07275 | S26: =G5/G32 -> 3.333333333 | T26: =G32/G37 -> 2.66075388
P27: Year 4 | Q27: =R27*S27*T27 -> 0.2207267523 | R27: =J24 -> 0.05385851991 | S27: =J5/J32 -> 3.634625887 | T27: =J32/J37 -> 1.12756307
E28: =E3 -> Laptop | H28: =I3 -> Tablet Forecast
B29: Balance (Mill €) | D29: Hypothesis | E29: =E4 -> 2023 | F29: =E29+1 -> 2024 | G29: =G4 -> 2025 | H29: =H4 -> 2026 | I29: =I4 -> 2027 | J29: =J4 -> 2028
B30: NFO | C30: 0.2 | D30: (5) | E30: 29 | F30: 0 | G30: =$C30*G5 -> 40 | H30: =$C30*H5 -> 44 | I30: =$C30*I5 -> 48.4 | J30: =$C30*J5 -> 53.24
B31: FA, fixed assets net | C31: 2 | D31: (5) | E31: 50 | F31: 20 | G31: =F31-G11+$C31 -> 20 | H31: =G31-H11+$C31 -> 20 | I31: =H31-I11+$C31 -> 20 | J31: =I31-J11+$C31 -> 20
B32: NA, net assets | E32: =E30+E31 -> 79 | F32: 20 | G32: 60 | H32: 64 | I32: 68.4 | J32: 73.24
B34: D-S debt short term | C34: 0.8 | D34: (6) | E34: 25 | F34: =$C$34*F30 -> 0 | G34: =$C$34*G30 -> 32 | H34: =$C$34*H30 -> 35.2 | I34: =$C$34*I30 -> 38.72 | J34: =$C$34*J30 -> 42.592
B35: D-L debt long term | C35: 4 | D35: years | E35: 0 | F35: 12 | G35: =F35-($F$35/$C$35) -> 9 | H35: =G35-($F$35/$C$35) -> 6 | I35: =H35-($F$35/$C$35) -> 3 | J35: =I35-($F$35/$C$35) -> 0
B36: D, Total Debt | E36: =E34+E35 -> 25 | F36: 12 | G36: 41 | H36: 41.2 | I36: 41.72 | J36: 42.592
B37: E, Equity | D37: (7) | E37: 54 | F37: =20-F35 -> 8 | G37: =F37+G16 -> 22.55 | H37: =G37+H16 -> 36.4325 | I37: =H37+I16 -> 50.6171 | J37: =I37+J16 -> 64.954238
B38: Financing | E38: =E36+E37 -> 79 | F38: =F37+F36 -> 20 | G38: =G37+G36 -> 63.55 | H38: =H37+H36 -> 77.6325 | I38: =I37+I36 -> 92.3371 | J38: =J37+J36 -> 107.546238
B39: Cash surplus (+) | D39: (8) | E39: =E38-E32 -> 0 | F39: =F38-F32 -> 0 | G39: 3.55 | H39: 13.6325 | I39: 23.9371 | J39: 34.306238
B40: Cash flow for the shareholder | D40: (8) | F40: =-(F37-F39) -> -8 | G40: =G39-F39 -> 3.55 | H40: =H39-G39 -> 10.0825 | I40: =I39-H39 -> 10.3046 | J40: =J39-I39 -> 10.369138
B43: Guidelines for the P&L and Balance sheet Forecast
B44: All the hypothesis are written in bold and green.
A45: (1) | B45: Sales. Base scenario 200. Pessimistic 150. Optimistic 250.
A46: (1) | B46: Sales growth: 10% base scenario, 0% pessimistic, 15% optimistic.
A47: (2) | B47: Gross margin / Sales. Base scenario, 1% decrease per year; Pessimistic -2%; Optimistic 0%.
A48: (3) | B48: Opex (8M€), increase with inflation of 3%. Depreciation, constant figure, 2M€ per year.
A49: (4) | B49: Interests: 5% of total debt of previous year (long and short term). Tax rate 25%.
A50: (5) | B50: NFO = 20% of Sales. FA constant (new investment = depreciation). New investment = 2 (cell C30).
A51: (5) | B51: FA of previous year - depreciation + capex.
A52: (6) | B52: Debt short tem = percentaje of NFO. In the base case 100%. You coudl change it. Long term debt paid back in 4 years
A53: (7) | B53: Equity: initial equity of 8 + net income of the year. No dividends paid. You may modify the initial equity and debt
A54: (8) | B54: Cash we will have in the balance sheet. The increase of cash from one year to the other is the cash flow for the shareholder.
K57: © E.M. Abascal. Sept 2022
F58: Tablet Project. CF Calculation. Return and Risks.
F60: =F29 -> 2024 | G60: =G29 -> 2025 | H60: =H29 -> 2026 | I60: =I29 -> 2027 | J60: =J29 -> 2028
B61: CF shareholder. Calculation | F61: =F72 -> 0 | G61: =G72 -> 1 | H61: =H72 -> 2 | I61: =I72 -> 3 | J61: =J72 -> 4 | M61: Perpetuity
B62: ± Variation of NA, net assets | D62: (1) | F62: =-F32 -> -20 | G62: =F32-G32 -> -40 | H62: =G32-H32 -> -4 | I62: =H32-I32 -> -4.4 | J62: =I32-J32 -> -4.84 | M62: K | N62: g
B63: ± Variation of Debt | D63: (2) | F63: =F36 -> 12 | G63: =G36-F36 -> 29 | H63: =H36-G36 -> 0.2 | I63: =I36-H36 -> 0.52 | J63: =J36-I36 -> 0.872 | M63: 0.2 | N63: 0
B64: + Net Income | G64: =G16 -> 14.55 | H64: =H16 -> 13.8825 | I64: =I16 -> 14.1846 | J64: =J16 -> 14.337138 | M64: Net Income | N64: =K16 -> 10.11474714
B65: Final Value | J65: =K68 -> 30.648
B66: CF shareholder | D66: (3) | F66: =SUM(F62:F64) -> -8 | G66: =SUM(G62:G64) -> 3.55 | H66: =SUM(H62:H64) -> 10.0825 | I66: =SUM(I62:I64) -> 10.3046 | J66: =SUM(J62:J65) -> 41.017138 | M66: Perpetuity = | N66: =N64/(M63-N63) -> 50.5737357
B68: Final value using perpetuity | D68: =K16/D69 -> 50.5737357 | F68: Final value if we sell the net assets at book value | K68: =J32-J34 -> 30.648
B69: CF shareholder, PV with | C69: Ke = | D69: 0.2 | E69: PV = | F69: =NPV(D69,G66:J66) -> 35.70402103 | G69: NPV = | H69: =F69+F66 -> 27.70402103 | I69: IRR = | J69: =IRR(F66:J66) -> 1.014274736
B72: FCF Calculation | F72: 0 | G72: 1 | H72: 2 | I72: 3 | J72: 4 | M72: Perpetuity
B73: ± Variation of NA, net assets | D73: (1) | F73: =-F32 -> -20 | G73: =F32-G32 -> -40 | H73: =G32-H32 -> -4 | I73: =H32-I32 -> -4.4 | J73: =I32-J32 -> -4.84 | M73: K | N73: g
B74: +EBIT (1-t) | G74: =G12*(1-$C$15) -> 15 | H74: =H12*(1-$C$15) -> 15.42 | I74: =I12*(1-$C$15) -> 15.7296 | J74: =J12*(1-$C$15) -> 15.901638 | M74: 0.2 | N74: 0
B75: Final Value | J75: =J32 -> 73.24 | M75: EBIT (1-t) | N75: =K12*(1-C15) -> 11.71194714
B76: FCF or CF of the assets | F76: =F73+F74 -> -20 | G76: =G73+G74 -> -25 | H76: =H73+H74 -> 11.42 | I76: =I73+I74 -> 11.3296 | J76: =J73+J74+J75 -> 84.301638 | M76: Perpetuity = | N76: =N75/(M74-N74) -> 58.5597357
I77: IRR = | J77: =IRR(F76:J76) -> 0.3234154471
D79: =20% -> 0.2
B80: Risks. Sensitivity Analysis.
C82: Biggest Risk (4)
B83: Scenarios | C83: Base | D83: Worst | E83: Best | F83: Range | J83: Worst & Best case (5)
B84: Leves of Sales | C84: 200 | D84: 150 | E84: 250 | H84: Scenarios | J84: IRR
B85: IRR shareholder | C85: 1.01 | D85: 0.6 | E85: 1.44 | F85: =E85-D85 -> 0.84 | H85: Worst | J85: 0.39
B86: Growth of Sales | C86: 0.1 | D86: 0 | E86: 0.15 | H86: Base | J86: 1.01
B87: IRR shareholder | C87: =C85 -> 1.01 | D87: 0.89 | E87: 1.07 | F87: =E87-D87 -> 0.18 | H87: Best | J87: 1.62
B88: Decline of Margin | C88: -0.01 | D88: -0.02 | E88: 0 | H88: Range | J88: =J87-J85 -> 1.23
B89: IRR shareholder | C89: =C85 -> 1.01 | D89: 0.89 | E89: 1.13 | F89: =E89-D89 -> 0.24
H90: IRR and Level of Equity vs Debt (6)
H91: Equity | J91: TIR
H92: 15M€ | J92: 0.7
H93: 10M€ | J93: 0.89
H94: 8M€ | J94: 1.01
H95: 5M€ | J95: 1.32
B97: Guidelines for the Calculation of CF and Risks Analysis
A98: (1) | B98: From the balance sheet (row 32). Net asset last year - NA this year. Negative sign means investment or negative CF.
A99: (2) | B99: From the balance sheet (row 36).Debt last year - Debt this year. Negative sign means we pay debt back. Negative CF.
A100: (3) | B100: CF the shareholder will receive. The numbers must coincide with those of row 40, calculated from the cash in the balance sheet.
A101: (4) | B101: We calculate the IRR when size of sales changes and the other variable remain constant.
B102: Same analysis for sales growth and margin decline.
B103: The main risk is Level of Sales, as could seen in the Range.
B104: Use the button Base Scenario to put the variables back to the base scenario
A105: (5) | B105: IRR of the shareholder if everything goes very well, very bad or according to the base scenario.
A106: (6) | B106: IRR of the shareholder if we invest 15, 10 or 5 million of equity (the rest is Debt).
K108: =K57 -> © E.M. Abascal. Sept 2022

Sheet Questions (hidden)
B1: Self-testing exercises to perform after the investment project and decision module is finished.
B2: One of the results of the Operational Finance module is that you end up learning accounting: that is, you can see with more clarity how each transaction is posted to the PyG balance sheet and account.
B3: To ensure this is the case, answer the following questionnaire. Write your answers in columns C,D, E (below).
B4: If there is a single answer, write in column C. If there are multiple columns, use columns D and E.
B5: Check your answers by clicking on the 2 in the top left corner; or click "+" above column J.
B6: Columns G, H, I with the correct answers will be displayed.
B7: For auto-qualifying to work, you have to use the exact word (as indicated in the notes included in the cells)
B8: In case technical words are not required to respond, answer T/F
B9: If you have doubts build your own examples to clarify.
B10: © IESE. E.M. Abascal 2017. Version 6/8/23
C11: ANSWER | D11: Your Mark | E11: CORRECT
B12: QUESTIONS | C12: T o F | E12: ANSWER
A13: 1 | B13: Net Assets (NA) = Net Fixed Assets + Capex. T or F? | D13: =IF(C13=E13,1,0) -> 0 | E13: F
A14: 2 | B14: Net assets are always financed with equity + debt. T or F? | D14: 0 | E14: T
A15: 3 | B15: The DCF formula says that if you pay the price P and have expected CF to receive during future years 1 to n, you would obtain the IRR return. T or F? | D15: 0 | E15: T
A16: 4 | B16: Project with an expected CF of €10/year. Initial investment of €100. If you want to get an IRR >10%, you must pay less than €100at the beginning. T or F? | D16: 0 | E16: T
A17: 5 | B17: The first step for the analysis of investment projects is the calculation of the FCF. T or F? | D17: 0 | E17: F
A18: 6 | B18: If the project promises good profitability, it must be done, even if the business is mediocre. T or F? | D18: 0 | E18: F
A19: 7 | B19: You usually won't need the P&L and balance sheet of the project because these data is already included in the cash flow calculation. T or F? | D19: 0 | E19: F
A20: 8 | B20: As a general rule, we don't invest in businesses we don't like or understand. T or F? | D20: 0 | E20: T
A21: 9 | B21: We like the business, but not the P&L forecast and balance sheets. The normal thing is not to invest. T or F? | D21: 0 | E21: T
A22: 10 | B22: The key factors and almost the only ones for the investment decision are the expected IRR and the perceived risk. T or F? | D22: 0 | E22: F
A23: 11 | B23: The number of years of the forecast always coincides with the number of years of the project, if known. T or F? | D23: 0 | E23: T
A24: 12 | B24: The FCF = EBIT − Var AN + Var Debt. T or F? | D24: 0 | E24: F
A25: 13 | B25: Meaning of the FCF. CF produced by the assets without considering the financing. T or F? | D25: 0 | E25: T
A26: 14 | B26: Equity CF can be calculated exclusively from balance sheet numbers. T or F? | D26: 0 | E26: T
A27: 15 | B27: The FCF is a totally real figure that coincides with what is in cash at the end of the year. T or F? | D27: 0 | E27: F
A28: 16 | B28: With the ECF we can also see the return that comes exclusively from the asset (and not from the financing). It is enough to write 0 debt on the balance sheet. T or F? | D28: 0 | E28: T
A29: 17 | B29: In most projects the final CF is not very relevant. T or F? | D29: 0 | E29: F
A30: 18 | B30: Most of the time the value of the perpetuity does not affect the profitability of the project because the perpetuity will be received in year 10 and money received 10 years from now has little value today. T or F? | D30: 0 | E30: F
A31: 19 | B31: The perpetuity is usually calculated as Recurring Profit / (K − g). T or F? | D31: 0 | E31: T
A32: 20 | B32: From the value of the perpetuity we subtract the outstanding debt in the year in which the perpetuity is supposedly received. T or F? | D32: 0 | E32: T
A33: 21 | B33: We could assume that the project continues with the same level of debt after year 10, in which case the debt does not have to be subtracted from the perpetuity value. T or F? | D33: 0 | E33: T
A34: 22 | B34: The IRR allows you to compare projects of the same duration and size but with different CF sequence. T or F? | D34: 0 | E34: T
A35: 23 | B35: The IRR allows you to compare projects, whatever their duration or size; you will always choose the one with the highest IRR. T or F? | D35: 0 | E35: F
A36: 24 | B36: If the expected CF are very similar each year, the simple return (CF / Investment) is a reasonable approximation to the IRR (and easier to calculate), only if the project lasts many years or, if it is short, you recover the initial investment at the end. T or F? | D36: 0 | E36: T
A37: 25 | B37: In a project, you should not include previous cash flows (sunk costs). T or F? | D37: 0 | E37: T
A38: 26 | B38: In the P&L forecast of a project it you must include a certain percentage of the general expenses of the company (salaries of the board, etc.), since someone must pay them. T or F? | D38: 0 | E38: F
A39: 27 | B39: You make household cleaning products. Your portfolio has more than a hundred products and references. Competition is fierce, with many new product launches each year. Every year you launch about twenty new products. The controller maintains a cost accounting system whereby 1% of all fixed costs (the CEO's salary, for example) are charged to each product. You are evaluating the possibility of launching a new product. You must include the 1% charge as an expense (negative CF) of the project. T or F? | D39: 0 | E39: F
A40: 28 | B40: Same situation as before. It is necessary to include the cannibalization that the new product will produce in other products of the company. T or F? | D40: 0 | E40: F
A41: 29 | B41: For project C you use an old machine with a book value of 20, which has no other alternative use. This machine must be included as an initial investment. T or F? | D41: 0 | E41: F
A42: 30 | B42: In project H you use an old machine with a book value of 20, which has no alternative use. The amortization of this machine must be included as a project expense in the P&L. T or F? | D42: 0 | E42: T
A43: 31 | B43: Projects A and B have the same expected profitability. Most of A's profitability comes from a big final CF at the end. Without considering other factors, we could say that project A is riskier than project B. T or F? | D43: 0 | E43: T
A44: 32 | B44: The investment decision is based on the perceived risk of the project, and therefore there is no need to quantify the risk. T or F? | D44: 0 | E44: F
A45: 33 | B45: To identify the most relevant risks, we calculate the IRR of the project in the three scenarios of each risk variable (base, optimal and worst). The higher the range, the higher the risk. T or F? | D45: 0 | E45: T
A46: 34 | B46: In our risk analysis we have assumed that the probability of the scenarios worst and best are the same, when in reality it does not have to be so. T or F? | D46: 0 | E46: T
A47: 35 | B47: The sources of risk will always come from the variability in EBIT and financial expenses. T or F? | D47: 0 | E47: F
A48: 36 | B48: Non-quantitative criteria should not influence investment decisions, precisely because they are not quantifiable. T or F? | D48: 0 | E48: F
A49: 37 | B49: If there is inflation, the ECF will increase and your project will give a higher IRR and will be more attractive. T or F? | D49: 0 | E49: F
A50: 38 | B50: If there is inflation, the nominal return of the project rises, the real one falls and the risk increases. T or F? | D50: 0 | E50: T
A51: 39 | B51: A project developed in Europe in 2023. The expected IRR for the shareholder is 15% in the base scenario, 5% in the bad scenario and 20% in the optimistic one. It was therefore a high risk project. T or F? | D51: 0 | E51: F
A52: 40 | B52: You have invested 2 million in land to build a hotel. A new legislation does not allow you to build the hotel. You can now sell the land and get 1 million. But you can also invest another million and build a golf course, which will give 0.2 million a year for many years. Your required return K is 10%. The expected return on golf is 0.2/3 < K. You shouldn't do the golf course. T or F? | D52: 0 | E52: F
B54: TOTAL QUALIFICATION OBTAINED | D54: =SUM(D13:D52) -> 0
B55: Maximum rating possible | D55: 40
C73: ?

Sheet Exh 4 DONE (hidden)
E1: DEC Project DEC. DONE
B2: All assumptions in bold and green. See the explanatory notes inside each cell.
B3: P & L (mill €) | C3: Assumptions | E3: 2025 | F3: =E3+1 -> 2026 | G3: =F3+1 -> 2027 | H3: =G3+1 -> 2028 | I3: =H3+1 -> 2029 | L3: Base | M3: Worst | N3: Best
B4: Sales | C4: 400 | E4: =C4 -> 400 | F4: =E4*(1+F17) -> 412 | G4: =F4*(1+G17) -> 424.36 | H4: =G4*(1+H17) -> 437.0908 | I4: =H4*(1+I17) -> 450.203524 | L4: 400 | M4: 300 | N4: 500
B5: CGS | E5: =E4-E6 -> 300 | F5: =F4-F6 -> 313.12 | G5: 326.7572 | H5: 340.930824 | I5: 355.660784
B6: Gross Margin | E6: =E4*E18 -> 100 | F6: =F4*F18 -> 98.88 | G6: =G4*G18 -> 97.6028 | H6: =H4*H18 -> 96.159976 | I6: =I4*I18 -> 94.54274004
B7: Opex or Overhead | C7: 20 | E7: =C7 -> 20 | F7: =E7*(1+F19) -> 20.6 | G7: =F7*(1+G19) -> 21.218 | H7: =G7*(1+H19) -> 21.85454 | I7: =H7*(1+I19) -> 22.5101762
B8: EBITDA | E8: =E6-E7 -> 80 | F8: =F6-F7 -> 78.28 | G8: =G6-G7 -> 76.3848 | H8: =H6-H7 -> 74.305436 | I8: =I6-I7 -> 72.03256384
B9: Depreciation | C9: 40 | E9: =$C9 -> 40 | F9: =$C9 -> 40 | G9: =$C9 -> 40 | H9: =$C9 -> 40 | I9: =$C9 -> 40
B10: EBIT | E10: =E8-E9 -> 40 | F10: =F8-F9 -> 38.28 | G10: =G8-G9 -> 36.3848 | H10: =H8-H9 -> 34.305436 | I10: =I8-I9 -> 32.03256384
B11: Financial expenses | C11: 0.05 | E11: =$C11*D33 -> 7.5 | F11: =$C11*E33 -> 9.2 | G11: =$C11*F33 -> 7.796 | H11: =$C11*G33 -> 6.39488 | I11: =$C11*H33 -> 4.9967264
B12: EBT | E12: =E10-E11 -> 32.5 | F12: =F10-F11 -> 29.08 | G12: =G10-G11 -> 28.5888 | H12: =H10-H11 -> 27.910556 | I12: =I10-I11 -> 27.03583744
B13: Taxes | C13: 0.2 | E13: =C13*E12 -> 6.5 | F13: =$C$13*F12 -> 5.816 | G13: =$C$13*G12 -> 5.71776 | H13: =$C$13*H12 -> 5.5821112 | I13: =$C$13*I12 -> 5.407167488 | J13: Total
B14: Net Income NI | E14: =E12-E13 -> 26 | F14: =F12-F13 -> 23.264 | G14: =G12-G13 -> 22.87104 | H14: =H12-H13 -> 22.3284448 | I14: =I12-I13 -> 21.62866995 | J14: =SUM(E14:I14) -> 116.0921548
B16: Ratios of the P&L | J16: Media | L16: Base | M16: Worst | N16: Best
B17: Sales growth | C17: 0.03 | E17: nd | F17: =$C17 -> 0.03 | G17: =$C17 -> 0.03 | H17: =$C17 -> 0.03 | I17: =$C17 -> 0.03 | J17: =AVERAGE(F17:J17) -> 0.03 | L17: 0.03 | M17: 0 | N17: 0.06
B18: Gross margin / Sales | C18: -0.01 | E18: 0.25 | F18: =E18+$C18 -> 0.24 | G18: =F18+$C18 -> 0.23 | H18: =G18+$C18 -> 0.22 | I18: =H18+$C18 -> 0.21 | J18: =AVERAGE(E18:J18) -> 0.23 | L18: -0.01 | M18: -0.02 | N18: 0
B19: Increase of Opex | C19: 0.03 | E19: nd | F19: =$C19 -> 0.03 | G19: =$C19 -> 0.03 | H19: =$C19 -> 0.03 | I19: =$C19 -> 0.03 | J19: =AVERAGE(F19:J19) -> 0.03 | L19: 0.03 | M19: 0.06 | N19: 0
B20: EBITDA / Sales | E20: =E8/E4 -> 0.2 | F20: =F8/F4 -> 0.19 | G20: =G8/G4 -> 0.18 | H20: =H8/H4 -> 0.17 | I20: =I8/I4 -> 0.16 | J20: =AVERAGE(E20:J20) -> 0.18
B21: ROS (Net Income / Sales) | E21: =E14/E4 -> 0.065 | F21: =F14/F4 -> 0.05646601942 | G21: =G14/G4 -> 0.05389537185 | H21: =H14/H4 -> 0.05108422506 | I21: =I14/I4 -> 0.04804198279 | J21: =AVERAGE(F21:J21) -> 0.05237189978
B22: ROE ( NI / Equity) | E22: =E14/D34 -> 0.52 | F22: =F14/E34 -> 0.3061052632 | G22: =G14/F34 -> 0.2914845024 | H22: =H14/G34 -> 0.2699154778 | I22: =I14/H34 -> 0.2493061733 | J22: =AVERAGE(E22:J22) -> 0.3273622833
B23: ROA (EBIT / Net assets) | E23: =E10/E29 -> 0.1666666667 | F23: =F10/E29 -> 0.1595 | G23: =G10/F29 -> 0.1797667984 | H23: =H10/G29 -> 0.2080731477 | I23: =I10/H29 -> 0.2513971622 | J23: =AVERAGE(F23:J23) -> 0.1996842771
B24: Dividends paid | C24: 0.8 | E24: 0 | F24: =$C$24*E14 -> 20.8 | G24: =$C$24*F14 -> 18.6112 | H24: 18.296832 | I24: 17.86275584 | J24: =SUM(E24:I24) -> 75.57078784
B26: Balance (Mill €) | C26: =C3 -> Assumptions | D26: =E26-1 -> 2024 | E26: =E3 -> 2025 | F26: =F3 -> 2026 | G26: =G3 -> 2027 | H26: =H3 -> 2028 | I26: =I3 -> 2029
B27: NFO | C27: 0.2 | E27: =$C27*E4 -> 80 | F27: =$C27*F4 -> 82.4 | G27: =$C27*G4 -> 84.872 | H27: =$C27*H4 -> 87.41816 | I27: 0
B28: FA, fixed assets net | C28: 0 | D28: 200 | E28: =D28-E9+$C28 -> 160 | F28: =E28-F9+$C28 -> 120 | G28: =F28-G9+$C28 -> 80 | H28: =G28-H9+$C28 -> 40 | I28: 0
B29: NA, net assets | D29: =D27+D28 -> 200 | E29: 240 | F29: 202.4 | G29: 164.872 | H29: 127.41816 | I29: 0
B31: D-S Line of credit | C31: 0.8 | E31: =$C31*E27 -> 64 | F31: =$C31*F27 -> 65.92 | G31: 67.8976 | H31: 69.934528 | I31: 0
B32: D-L Loan | C32: 5 | D32: =D29-D34 -> 150 | E32: =D32-($D$32/$C$32) -> 120 | F32: =E32-($D$32/$C$32) -> 90 | G32: =F32-($D$32/$C$32) -> 60 | H32: =G32-($D$32/$C$32) -> 30 | I32: 0
B33: D, Total Debt | D33: =D31+D32 -> 150 | E33: =E31+E32 -> 184 | F33: 155.92 | G33: 127.8976 | H33: 99.934528 | I33: 0
B34: E, Equity | D34: 50 | E34: =D34+E14-E24 -> 76 | F34: =E34+F14-F24 -> 78.464 | G34: =F34+G14-G24 -> 82.72384 | H34: =G34+H14-H24 -> 86.7554528 | I34: =H34+I14-I24 -> 90.52136691
B35: Financing | D35: =D33+D34 -> 200 | E35: =E33+E34 -> 260 | F35: 234.384 | G35: 210.62144 | H35: 186.6899808 | I35: 90.52136691
C36: Cash surplus (+) or credit needed (-) | D36: =D35-D29 -> 0 | E36: 20 | F36: 31.984 | G36: 45.74944 | H36: 59.2718208 | I36: 90.52136691 | J36: Total
C37: Cash flow for the shareholder | E37: =E36-D36+E24 -> 20 | F37: =F36-E36+F24 -> 32.784 | G37: =G36-F36+G24 -> 32.37664 | H37: =H36-G36+H24 -> 31.8192128 | I37: =I36-H36+I24 -> 49.11230195 | J37: =SUM(E37:I37) -> 166.0921548
B39: CF shareholder. Calculation | D39: =D63 -> 0 | E39: 1 | F39: 2 | G39: 3 | H39: 4 | I39: 5 | M39: Perpetuity
B40: ± Variation of NA, net assets | D40: -200 | E40: -40 | F40: 37.6 | G40: 37.528 | H40: 37.45384 | I40: 127.41816 | M40: K | N40: g
B41: ± Variation of Debt | D41: =D33 -> 150 | E41: =E33-D33 -> 34 | F41: =F33-E33 -> -28.08 | G41: -28.0224 | H41: -27.963072 | I41: -99.934528 | M41: 0.2 | N41: 0
B42: + Net Income | D42: =D14 -> 0 | E42: 26 | F42: 23.264 | G42: 22.87104 | H42: 22.3284448 | I42: 21.62866995 | J42: Total | M42: Net Income | N42: =I14 -> 21.62866995
B43: CF shareholder | D43: =SUM(D40:D42) -> -50 | E43: 20 | F43: 32.784 | G43: 32.37664 | H43: 31.8192128 | I43: 49.11230195 | J43: =SUM(E43:I43) -> 166.0921548 | M43: Perpetuity = | N43: =N42/(M41-N41) -> 108.1433498
D45: IRR = | E45: =IRR(D43:I43) -> 0.502923009 | H45: IRR of the assets = | I45: 0.19
B47: Risks. Sensitivity Analysis. | C47: Base | D47: Worst | E47: Best | F47: Range | I47: no need to calculate
B48: Level of Sales | C48: 400 | D48: 300 | E48: 500 | H48: K = | I48: 0.2
B49: IRR Shareholder | C49: 0.5 | D49: 0.11 | E49: 0.85 | F49: =(E49-D49)*100 -> 74 | H49: PV = | I49: =NPV(I48,E43:I43) -> 93.25186106
B50: Growth of Sales | C50: 0.03 | D50: 0 | E50: 0.06 | H50: NPV = | I50: =I49+D43 -> 43.25186106
B51: IRR Shareholder | C51: =C49 -> 0.5 | D51: 0.45 | E51: 0.55 | F51: =(E51-D51)*100 -> 10
B52: Margin decline | C52: -0.01 | D52: -0.02 | E52: 0 | H52: IIR and level of Debt
B53: IRR Shareholder | C53: =C51 -> 0.5 | D53: 0.41 | E53: 0.58 | F53: =(E53-D53)*100 -> 17 | H53: Equity | J53: IRR
B54: Increase of Opex | C54: 0.03 | D54: 0.06 | E54: 0 | H54: 75% o 150M€ | J54: 0.23
B55: IRR Shareholder | C55: =C53 -> 0.5 | D55: 0.49 | E55: 0.52 | F55: =(E55-D55)*100 -> 3 | H55: 50% o 100M€ | J55: 0.31
B56: IRR, in Base, Worst & Best scenarios | C56: =C55 -> 0.5 | D56: -0.19 | E56: 0.98 | F56: =(E56-D56)*100 -> 117 | H56: 25% o 50M€ | J56: 0.5
J58: © E.M. Abascal. Sept. 2023
B60: If you want to do more calculations you can calculate the FCF. You will see that the FCF = Equity CF, if the debt is 0.
D62: =D26 -> 2024 | E62: 2025 | F62: 2026 | G62: 2027 | H62: 2028 | I62: 2029 | L62: Perpetuity
B63: FCF Calculation | D63: 0 | E63: 1 | F63: 2 | G63: 3 | H63: 4 | I63: 5 | L63: K | M63: g
B64: ± Variation of NA, net assets | D64: =-D29 -> -200 | E64: =D29-E29 -> -40 | F64: =E29-F29 -> 37.6 | G64: =F29-G29 -> 37.528 | H64: =G29-H29 -> 37.45384 | I64: =H29-I29 -> 127.41816 | L64: 0.2 | M64: 0
B65: +EBIT x (1-t) | E65: =E10*(1-$C$13) -> 32 | F65: =F10*(1-$C$13) -> 30.624 | G65: 29.10784 | H65: 27.4443488 | I65: 25.62605107 | L65: EBIT | M65: =I10*(1-C13) -> 25.62605107
B66: FCF or CF of the assets | D66: =D64+D65 -> -200 | E66: -8 | F66: 68.224 | G66: 66.63584 | H66: 64.8981888 | I66: 153.0442111 | L66: Perpetuity = | M66: =M65/(L64-M64) -> 128.1302554
G68: TIR = | H68: =IRR(D66:I66) -> 0.1525076095
J76: =J58 -> © E.M. Abascal. Sept. 2023

Sheet Exh 4 TO DO (hidden)
E1: DEC Project DEC. TO DO
B2: All assumptions in bold and green. See the explanatory notes inside each cell.
B3: P & L (mill €) | C3: Assumptions | E3: 2025 | F3: =E3+1 -> 2026 | G3: =F3+1 -> 2027 | H3: =G3+1 -> 2028 | I3: =H3+1 -> 2029 | L3: Base | M3: Worst | N3: Best
B4: Sales | C4: 400 | E4: =C4 -> 400 | L4: 400 | M4: 300 | N4: 500
B5: CGS
B6: Gross Margin
B7: Opex or Overhead | C7: 20
B8: EBITDA
B9: Depreciation | C9: 40
B10: EBIT
B11: Financial expenses | C11: 0.05
B12: EBT
B13: Taxes | C13: 0.2 | J13: Total
B14: Net Income NI | J14: =SUM(E14:I14) -> 0
B16: Ratios of the P&L | J16: Media | L16: Base | M16: Worst | N16: Best
B17: Sales growth | C17: 0.03 | E17: nd | F17: =$C17 -> 0.03 | G17: =$C17 -> 0.03 | H17: =$C17 -> 0.03 | I17: =$C17 -> 0.03 | J17: =AVERAGE(F17:J17) -> 0.03 | L17: 0.03 | M17: 0 | N17: 0.06
B18: Gross margin / Sales | C18: -0.01 | E18: 0.25 | F18: =E18+$C18 -> 0.24 | G18: =F18+$C18 -> 0.23 | H18: =G18+$C18 -> 0.22 | I18: =H18+$C18 -> 0.21 | J18: =AVERAGE(E18:J18) -> 0.23 | L18: -0.01 | M18: -0.02 | N18: 0
B19: Increase of Opex | C19: 0.03 | E19: nd | F19: =$C19 -> 0.03 | G19: =$C19 -> 0.03 | H19: =$C19 -> 0.03 | I19: =$C19 -> 0.03 | J19: =AVERAGE(F19:J19) -> 0.03 | L19: 0.03 | M19: 0.06 | N19: 0
B20: EBITDA / Sales
B21: ROS (Net Income / Sales)
B22: ROE ( NI / Equity)
B23: ROA (EBIT / Net assets)
B24: Dividends paid | C24: 0.8 | J24: =SUM(E24:I24) -> 0
B26: Balance (Mill €) | C26: =C3 -> Assumptions | D26: =E26-1 -> 2024 | E26: =E3 -> 2025 | F26: =F3 -> 2026 | G26: =G3 -> 2027 | H26: =H3 -> 2028 | I26: =I3 -> 2029
B27: NFO | C27: 0.2
B28: FA, fixed assets net | C28: 0 | D28: 200
B29: NA, net assets | D29: =D27+D28 -> 200
B31: D-S Line of credit | C31: 0.8
B32: D-L Loan | C32: 5 | D32: =D29-D34 -> 150
B33: D, Total Debt | D33: =D31+D32 -> 150
B34: E, Equity | D34: 50
B35: Financing | D35: =D33+D34 -> 200
C36: Cash surplus (+) or credit needed (-) | D36: =D35-D29 -> 0 | J36: Total
C37: Cash flow for the shareholder | J37: =SUM(E37:I37) -> 0
B39: CF shareholder. Calculation | D39: =D63 -> 0 | E39: 1 | F39: 2 | G39: 3 | H39: 4 | I39: 5 | M39: Perpetuity
B40: ± Variation of NA, net assets | M40: K | N40: g
B41: ± Variation of Debt | M41: 0.2 | N41: 0
B42: + Net Income | J42: Total | M42: Net Income | N42: =I14 -> 0
B43: CF shareholder | J43: =SUM(E43:I43) -> 0 | M43: Perpetuity = | N43: =N42/(M41-N41) -> 0
D45: IRR = | E45: =IRR(D43:I43) ->  | H45: IRR of the assets =
B47: Risks. Sensitivity Analysis. | C47: Base | D47: Worst | E47: Best | F47: Range | I47: no need to calculate
B48: Level of Sales | C48: 400 | D48: 300 | E48: 500 | H48: K = | I48: 0.2
B49: IRR Shareholder | F49: =(E49-D49)*100 -> 0 | H49: PV = | I49: =NPV(I48,E43:I43) -> 0
B50: Growth of Sales | C50: 0.03 | D50: 0 | E50: 0.06 | H50: NPV = | I50: =I49+D43 -> 0
B51: IRR Shareholder | F51: =(E51-D51)*100 -> 0
B52: Margin decline | C52: -0.01 | D52: -0.02 | E52: 0 | H52: IIR and level of Debt
B53: IRR Shareholder | F53: =(E53-D53)*100 -> 0 | H53: Equity | J53: IRR
B54: Increase of Opex | C54: 0.03 | D54: 0.06 | E54: 0 | H54: 75% o 150M€
B55: IRR Shareholder | F55: =(E55-D55)*100 -> 0 | H55: 50% o 100M€
B56: IRR, in Base, Worst & Best scenarios | F56: =(E56-D56)*100 -> 0 | H56: 25% o 50M€
J58: © E.M. Abascal. Sept. 2023
B60: If you want to do more calculations you can calculate the FCF. You will see that the FCF = Equity CF, if the debt is 0.
D62: =D26 -> 2024 | E62: 2025 | F62: 2026 | G62: 2027 | H62: 2028 | I62: 2029 | L62: Perpetuity
B63: FCF Calculation | D63: 0 | E63: 1 | F63: 2 | G63: 3 | H63: 4 | I63: 5 | L63: K | M63: g
B64: ± Variation of NA, net assets | D64: =-D29 -> -200 | E64: =D29-E29 -> 200 | F64: =E29-F29 -> 0 | G64: =F29-G29 -> 0 | H64: =G29-H29 -> 0 | I64: =H29-I29 -> 0 | L64: 0.2 | M64: 0
B65: +EBIT x (1-t) | E65: =E10*(1-$C$13) -> 0 | F65: =F10*(1-$C$13) -> 0 | G65: 0 | H65: 0 | I65: 0 | L65: EBIT | M65: =I10*(1-C13) -> 0
B66: FCF or CF of the assets | D66: =D64+D65 -> -200 | E66: 200 | F66: 0 | G66: 0 | H66: 0 | I66: 0 | L66: Perpetuity = | M66: =M65/(L64-M64) -> 0
G68: TIR = | H68: =IRR(D66:I66) -> 0
J76: =J58 -> © E.M. Abascal. Sept. 2023

Sheet Anex 2
F1: Proyecto Tablets. Previsión de Cta. Rdos y Balance
E3: Laptops | I3: Tablets Previsión
B4: Cta Rdos (mill €) | D4: Hipótesis | E4: 2023 | G4: 2025 | H4: =G4+1 -> 2026 | I4: =H4+1 -> 2027 | J4: =I4+1 -> 2028 | K4: =J4+1 -> 2029 | N4: Base | O4: Peor | P4: Mejor
B5: Ventas | C5: =200 -> 200 | D5: (1) | E5: 200 | G5: =C5 -> 200 | H5: =G5*(1+H19) -> 220 | I5: =H5*(1+I19) -> 242 | J5: =I5*(1+J19) -> 266.2 | K5: =J5*(1+K19) -> 266.2 | N5: 200 | O5: 150 | P5: 250
B6: CMV | E6: 162 | G6: =(G5-G7) -> 160 | H6: =(H5-H7) -> 178.2 | I6: =(I5-I7) -> 198.44 | J6: =(J5-J7) -> 220.946 | K6: =(K5-K7) -> 226.27
B7: Margen bruto | D7: (2) | E7: =E5-E6 -> 38 | G7: =G5*G20 -> 40 | H7: =H5*H20 -> 41.8 | I7: =I5*I20 -> 43.56 | J7: =J5*J20 -> 45.254 | K7: =K5*K20 -> 39.93
B8: Gastos de ventas | C8: 0.05 | E8: =C$8*E5 -> 10 | G8: =$C8*G5 -> 10 | H8: =$C8*H5 -> 11 | I8: =$C8*I5 -> 12.1 | J8: =$C8*J5 -> 13.31 | K8: =$C8*K5 -> 13.31
B9: Opex | C9: 8 | D9: (3) | E9: 8 | G9: =C9 -> 8 | H9: =G9*(1+H21) -> 8.24 | I9: =H9*(1+I21) -> 8.4872 | J9: =I9*(1+J21) -> 8.741816 | K9: =J9*(1+K21) -> 9.00407048
B10: EBITDA | E10: =E7-E8-E9 -> 20 | G10: =G7-G8-G9 -> 22 | H10: =H7-H8-H9 -> 22.56 | I10: =I7-I8-I9 -> 22.9728 | J10: =J7-J8-J9 -> 23.202184 | K10: =K7-K8-K9 -> 17.61592952
B11: Amortización | C11: 2 | D11: (3) | E11: 5 | G11: =C11 -> 2 | H11: =$C11 -> 2 | I11: =$C11 -> 2 | J11: =$C11 -> 2 | K11: =$C11 -> 2
B12: EBIT | E12: =E10-E11 -> 15 | G12: =G10-G11 -> 20 | H12: =H10-H11 -> 20.56 | I12: =I10-I11 -> 20.9728 | J12: =J10-J11 -> 21.202184 | K12: =K10-K11 -> 15.61592952
B13: Gastos financieros | C13: 0.05 | D13: (4) | E13: 2.5 | G13: =$C13*F36 -> 0.6 | H13: =$C13*G36 -> 2.05 | I13: =$C13*H36 -> 2.06 | J13: =$C13*I36 -> 2.086 | K13: =$C13*J36 -> 2.1296
B14: EBT | E14: =E12-E13 -> 12.5 | G14: =G12-G13 -> 19.4 | H14: =H12-H13 -> 18.51 | I14: =I12-I13 -> 18.9128 | J14: =J12-J13 -> 19.116184 | K14: =K12-K13 -> 13.48632952
B15: Impuestos | C15: 0.25 | D15: (4) | E15: =C15*E14 -> 3.125 | G15: =$C$15*G14 -> 4.85 | H15: =$C$15*H14 -> 4.6275 | I15: =$C$15*I14 -> 4.7282 | J15: =$C$15*J14 -> 4.779046 | K15: =$C$15*K14 -> 3.37158238
B16: BN, Beneficio neto | E16: =E14-E15 -> 9.375 | G16: =G14-G15 -> 14.55 | H16: =H14-H15 -> 13.8825 | I16: =I14-I15 -> 14.1846 | J16: =J14-J15 -> 14.337138 | K16: =K14-K15 -> 10.11474714
B18: Ratios de Cuenta de Resultados | I18: Hipótesis (en negrita y verde) | N18: Base | O18: Peor | P18: Mejor
B19: Crecimiento de ventas | C19: 0.1 | D19: (1) | E19: nd | G19: nd | H19: =C19 -> 0.1 | I19: =H19 -> 0.1 | J19: =I19 -> 0.1 | K19: 0 | N19: 0.1 | O19: 0 | P19: 0.15
B20: Margen bruto / Ventas | C20: -0.01 | D20: (2) | E20: =E7/E5 -> 0.19 | G20: 0.2 | H20: =G20+$C20 -> 0.19 | I20: =H20+$C20 -> 0.18 | J20: =I20+$C20 -> 0.17 | K20: 0.15 | N20: -0.01 | O20: -0.02 | P20: 0
B21: Incremento de Opex | C21: 0.03 | D21: (3) | E21: 0.05 | G21: =C21 -> 0.03 | H21: =G21 -> 0.03 | I21: =H21 -> 0.03 | J21: =I21 -> 0.03 | K21: =J21 -> 0.03
B22: Opex / Ventas | E22: =E9/E5 -> 0.04 | G22: =G9/G5 -> 0.04 | H22: =H9/H5 -> 0.03745454545 | I22: =I9/I5 -> 0.03507107438 | J22: =J9/J5 -> 0.03283927874
B23: EBITDA / Ventas | E23: =E10/E5 -> 0.1 | G23: =G10/G5 -> 0.11 | H23: =H10/H5 -> 0.1025454545 | I23: =I10/I5 -> 0.09492892562 | J23: =J10/J5 -> 0.08716072126 | K23: Media
B24: ROS (Beneficio / Ventas) | E24: =E16/E5 -> 0.046875 | G24: =G16/G5 -> 0.07275 | H24: =H16/H5 -> 0.06310227273 | I24: =I16/I5 -> 0.05861404959 | J24: =J16/J5 -> 0.05385851991 | K24: =AVERAGE(G24:K24) -> 0.06208121056
B25: ROE (Beneficio / Equity) | E25: =E16/(E37-E16) -> 0.2100840336 | G25: =G16/G37 -> 0.645232816 | H25: =H16/H37 -> 0.381047142 | I25: =I16/I37 -> 0.2802333599 | J25: =J16/J37 -> 0.2207267523 | K25: =AVERAGE(G25:K25) -> 0.3818100175 | Q25: ROE = | R25: ROS x | S25: Turnover | T25: x Levarage
B26: RONA (EBIT / Activo neto) | E26: =E12/E32 -> 0.1898734177 | G26: =G12/G32 -> 0.3333333333 | H26: =H12/H32 -> 0.32125 | I26: =I12/I32 -> 0.306619883 | J26: =J12/J32 -> 0.2894891316 | K26: =AVERAGE(G26:K26) -> 0.312673087 | P26: Year 1 | Q26: =R26*S26*T26 -> 0.645232816 | R26: =G24 -> 0.07275 | S26: =G5/G32 -> 3.333333333 | T26: =G32/G37 -> 2.66075388
P27: Year 4 | Q27: =R27*S27*T27 -> 0.2207267523 | R27: =J24 -> 0.05385851991 | S27: =J5/J32 -> 3.634625887 | T27: =J32/J37 -> 1.12756307
E28: =E3 -> Laptops | H28: =I3 -> Tablets Previsión
B29: Balance (Mill €) | D29: Hipótesis | E29: =E4 -> 2023 | F29: 2024 | G29: =G4 -> 2025 | H29: =H4 -> 2026 | I29: =I4 -> 2027 | J29: =J4 -> 2028
B30: NOF | C30: 0.2 | D30: (5) | E30: 29 | F30: 0 | G30: =$C30*G5 -> 40 | H30: =$C30*H5 -> 44 | I30: =$C30*I5 -> 48.4 | J30: =$C30*J5 -> 53.24
B31: AF, activo fijo neto | C31: 2 | D31: (5) | E31: 50 | F31: 20 | G31: =F31-G11+$C31 -> 20 | H31: =G31-H11+$C31 -> 20 | I31: =H31-I11+$C31 -> 20 | J31: =I31-J11+$C31 -> 20
B32: AN, activo neto | E32: =E30+E31 -> 79 | F32: 20 | G32: 60 | H32: 64 | I32: 68.4 | J32: 73.24
K33: Media
B34: D-C, Deuda a corto | C34: 0.8 | D34: (6) | E34: 25 | F34: =$C$34*F30 -> 0 | G34: =$C$34*G30 -> 32 | H34: =$C$34*H30 -> 35.2 | I34: =$C$34*I30 -> 38.72 | J34: =$C$34*J30 -> 42.592 | K34: =AVERAGE(F34:J34) -> 29.7024
B35: D-L, Deuda a largo | C35: 4 | D35: años | E35: 0 | F35: 12 | G35: =F35-($F$35/$C$35) -> 9 | H35: =G35-($F$35/$C$35) -> 6 | I35: =H35-($F$35/$C$35) -> 3 | J35: =I35-($F$35/$C$35) -> 0 | K35: =AVERAGE(F35:J35) -> 6
B36: D, Deuda total | E36: =E34+E35 -> 25 | F36: 12 | G36: 41 | H36: 41.2 | I36: 41.72 | J36: 42.592
B37: E, Equity o Patrimonio | D37: (7) | E37: 54 | F37: =20-F35 -> 8 | G37: =F37+G16 -> 22.55 | H37: =G37+H16 -> 36.4325 | I37: =H37+I16 -> 50.6171 | J37: =I37+J16 -> 64.954238 | K37: =AVERAGE(F37:J37) -> 36.5107676
B38: Financiación | E38: =+E34+E35+E37 -> 79 | F38: =F36+F37 -> 20 | G38: =G36+G37 -> 63.55 | H38: =H36+H37 -> 77.6325 | I38: =I36+I37 -> 92.3371 | J38: =J36+J37 -> 107.546238
B39: Caja excedente (+) | D39: (8) | E39: =E38-E32 -> 0 | F39: 0 | G39: 3.55 | H39: 13.6325 | I39: 23.9371 | J39: 34.306238
B40: Cash flow anual para accionista | D40: (8) | F40: =-(F37-F39) -> -8 | G40: =G39-F39 -> 3.55 | H40: =H39-G39 -> 10.0825 | I40: =I39-H39 -> 10.3046 | J40: =J39-I39 -> 10.369138
B43: Directrices para la previsión de Cta. Rdos y Balances
B44: Todas las hipótesis en negrita y verde.
A45: (1) | B45: Ventas. Escenario base 200. Pesimista 150. Optimista 250.
A46: (1) | B46: Crecimiento ventas: 10% escenario base, 15% optimista y 0% pesimista.
A47: (2) | B47: Margen / Ventas. Escenario base baja un 1% anual. Optimista 0%, pesimista, bajada anual -2%.
A48: (3) | B48: Gastos generales, aumentan con la inflación, 3% por año. Amortización, cifra constante, asume que son 2M€ por año.
A49: (4) | B49: Intereses, 5% x deuda total (corto y largo) del año anterior. Tasa impositiva = 25%.
A50: (5) | B50: NOF = 20% de Ventas. Asumir inversión nueva = amortización, es decir AF constante. Inversión nueva está en celda C31.
A51: (5) | B51: AF del año anterior - amortización + capex
A52: (6) | B52: Deuda a corto = porcentaje de NOF. En el caso baso 80%. Deuda a largo se amortiza en 4 años.
A53: (7) | B53: Equity. Escenario base 8M. Podemos modificarlo:subir o bajar deuda y equity. Cada año añadir el beneficio del año.
A54: (8) | B54: Caja que tendremos en el balance. La diferencia de caja de un año a otro es el CF accionista.
K57: © E.M. Abascal. Sept 2022
F58: Proyecto Tablets. Cálculo de CF, Rentabilidad y Riesgos
F60: =F29 -> 2024 | G60: =G29 -> 2025 | H60: =H29 -> 2026 | I60: =I29 -> 2027 | J60: =J29 -> 2028
B61: Cálculo del CF accionista | F61: 0 | G61: 1 | H61: 2 | I61: 3 | J61: 4 | M61: Perpetuity
B62: Variación de activo neto AN | D62: (1) | F62: =-F32 -> -20 | G62: =F32-G32 -> -40 | H62: =G32-H32 -> -4 | I62: =H32-I32 -> -4.4 | J62: =I32-J32 -> -4.84 | M62: K | N62: g
B63: Variación de Deuda | D63: (2) | F63: =F36 -> 12 | G63: =G36-F36 -> 29 | H63: =H36-G36 -> 0.2 | I63: =I36-H36 -> 0.52 | J63: =J36-I36 -> 0.872 | M63: =D69 -> 0.2 | N63: 0
B64: Beneficio neto | G64: =G16 -> 14.55 | H64: =H16 -> 13.8825 | I64: =I16 -> 14.1846 | J64: =J16 -> 14.337138 | M64: Benef neto | N64: =K16 -> 10.11474714
B65: Valor final VF | J65: =K68 -> 30.648 | M65: Perpetuity = | N65: =N64/(M63-N63) -> 50.5737357
B66: CF accionista | D66: (3) | F66: =SUM(F62:F64) -> -8 | G66: =SUM(G62:G64) -> 3.55 | H66: =SUM(H62:H64) -> 10.0825 | I66: =SUM(I62:I64) -> 10.3046 | J66: =SUM(J62:J65) -> 41.017138
B68: Valor final usando perpetuidad | E68: =K16/D69 -> 50.5737357 | F68: Valor final si vendmos los activos a valor contable | K68: =J32-J36 -> 30.648
B69: CF accionista, VA con | C69: Ke = | D69: 0.2 | E69: VA = | F69: =NPV(D69,G66:J66) -> 35.70402103 | G69: VAN = | H69: =F69+F66 -> 27.70402103 | I69: TIR = | J69: =IRR(F66:J66) -> 1.014274736
M71: Perpetuity
B72: Cálculo del FCF o CF activo | F72: =F61 -> 0 | G72: =G61 -> 1 | H72: =H61 -> 2 | I72: =I61 -> 3 | J72: =J61 -> 4 | M72: K | N72: g
B73: ± Variación de AN, activo neto | D73: (1) | F73: =-F32 -> -20 | G73: =F32-G32 -> -40 | H73: =G32-H32 -> -4 | I73: =H32-I32 -> -4.4 | J73: =I32-J32 -> -4.84 | M73: 0.2 | N73: 0
B74: +EBIT (1-t) | G74: =G12*(1-$C$15) -> 15 | H74: =H12*(1-$C$15) -> 15.42 | I74: =I12*(1-$C$15) -> 15.7296 | J74: =J12*(1-$C$15) -> 15.901638 | M74: EBIT (1-t) | N74: =K12*(1-C15) -> 11.71194714
B75: Valor final VF | J75: =J32 -> 73.24 | M75: Perpetuity = | N75: =N74/(M73-N73) -> 58.5597357
B76: FCF o CF del activo | F76: =F73+F74 -> -20 | G76: =G73+G74 -> -25 | H76: =H73+H74 -> 11.42 | I76: =I73+I74 -> 11.3296 | J76: =J73+J74+J75 -> 84.301638
I78: TIR = | J78: =IRR(F76:J76) -> 0.3234154471
D79: =20% -> 0.2
B80: Riesgos. Análisis de Sensibilidad
C82: Riesgo Mayor (4)
B83: Escenarios | C83: Base | D83: Peor | E83: Mejor | F83: Rango | J83: Worst & Best case (5)
B84: Nivel de Ventas | C84: 200 | D84: 150 | E84: 250 | H84: Escenarios | J84: TIR
B85: TIR Accionista | C85: 1.01 | D85: 0.6 | E85: 1.44 | F85: =E85-D85 -> 0.84 | H85: Peor | J85: 0.39
B86: Crecimiento g Vtas | C86: 0.1 | D86: 0 | E86: 0.15 | H86: Base | J86: 1.01
B87: TIR Accionista | C87: =C85 -> 1.01 | D87: 0.89 | E87: 1.07 | F87: =E87-D87 -> 0.18 | H87: Mejor | J87: 1.62
B88: Caída de margen | C88: -0.01 | D88: -0.02 | E88: 0 | H88: Rango | J88: =J87-J85 -> 1.23
B89: TIR Accionista | C89: =C85 -> 1.01 | D89: 0.89 | E89: 1.13 | F89: =E89-D89 -> 0.24
H90: TIR y Nivel de Equtiy y Deuda (6)
H91: Equity | J91: TIR
H92: 15M€ | J92: 0.7
H93: 10M€ | J93: 0.89
H94: 8M€ | J94: 1.01
H95: 5M€ | J95: 1.32
B97: Directrices para el cálculo de CF y análisis de riesgos
A98: (1) | B98: Del balance (fila 32). AN año pasado - AN de este año. Signo negativo significa que invertimos, CF negativo.
A99: (2) | B99: Del balance (fila 36). Deuda de este año - deuda del año pasado. Signo negativo significa que devolvemos deuda, CF negativo.
A100: (3) | B100: CF accionista que recibiremos. Las cifras deben coincidir las de la fila 40 (calculadas a partir de la caja en el balance).
A101: (4) | B101: Calcular TIR accionista, cuando cambian las ventas, y permanecen constantes las otras variables.
B102: Mismo análisis para crecimiento de ventas y caída del margen.
B103: El riesgo principal es el nivel de ventas como se observa en el Rango.
B104: Usar el botón Escenario Base para volver todas las variables al escenario base.
A105: (5) | B105: TIR del accionistasi todo va mal o si todo va bien.
A106: (6) | B106: TIR del accionista si invertimos, 15, 10 o 5 millones de capital propio o equity.
K108: =K57 -> © E.M. Abascal. Sept 2022

Sheet Preguntas
B1: Ejercicios de autocomprobación para realizar una vez acabado el módulo de Análisis de Proyectos de Inversión.
B2: Uno de los resultados del módulo de Finanzas Operativas es que uno acaba aprendiendo contabilidad: es decir, puedes ver con claridad
B3: cómo cada operación se contabiliza en el balance y la cuenta de PyG.
B4: Para asegurar que esto es así, contesta el siguiente cuestionario. Escribe tus respuestas en las columnas C,D, E (aquí abajo).
B5: Si hay una sola respuesta escribe en la columna C. Si hay varias, utiliza las columnas D y E.
B6: Comprueba tus respuestas pinchando en el 2 con recuadro de la esquina superior izquierda; o en la cruz con recuadro encima de la columna J.
B7: Se desplegarán las columnas G, H, I con las respuestas correctas.
B8: Para que la calificació automática funcione, tienes que usar la palabra exacta (tal como se indica en las notas incluidasen las celdas)
B9: Si no requiere respuesta técnica, dar respuesta binária: V o F.
B10: Si tienes dudas construye tus propios ejemplos para aclararte.
B11: © IESE. E.M. Abascal 2017. Versión 6/8/23
C12: Respuestas | D12: Calificación | E12: Respuesta
A13: Nº | B13: PREGUNTAS | C13: V o F | D13: Obtenida | E13: correcta
A14: 1 | B14: Activo neto (AN) = Activo fijo neto + Capex. ¿V o F? | D14: =IF(C14=E14,1,0) -> 0 | E14: F
A15: 2 | B15: El activo neto está siempre financiado con patrimonio + deuda. ¿V o F? | D15: =IF(C15=E15,1,0) -> 0 | E15: V
A16: 3 | B16: La fórmula de DCF dice que si pagas el precio P y tienes unos CF esperados a recibir durante los años futuros 1 a n, obtendrías la rentabilidad TIR. ¿V o F? | D16: 0 | E16: V
A17: 4 | B17: Proyecto con un CF esperado de 10€/año. Inversión inicial de 100€. Si quieres obtener una TIR >10%, debes pagar menos al principio. ¿V o F? | D17: 0 | E17: V
A18: 5 | B18: El primer paso para el análisis de proyectos de inversión es el cálculo del FCF. ¿V o F? | D18: 0 | E18: F
A19: 6 | B19: Si el proyecto promete una buena rentabilidad hay que hacerlo, aunque el negocio sea mediocre. ¿V o F? | D19: 0 | E19: F
A20: 7 | B20: Habitualmente no necesitarás la P&G y el balance del proyecto porque estos datos ya están incluidos en el cálculo de los flujos de caja. ¿V o F? | D20: 0 | E20: F
A21: 8 | B21: Como regla general, no invertimos en negocios que no nos gustan o no entendemos. ¿V o F? | D21: 0 | E21: V
A22: 9 | B22: El negocio nos gusta, pero no así la previsión de PyG y balances. Lo normal es no invertir. ¿V o F? | D22: 0 | E22: V
A23: 10 | B23: El factor clave y casi el único para la decisión de inversión es la TIR esperada. ¿V o F? | D23: 0 | E23: F
A24: 11 | B24: Lo normal es que el número de años del forecast coincida con el número de años del proyecto ¿V o F? | D24: 0 | E24: V
A25: 12 | B25: El FCF = EBIT − Var AN + Var Deuda. | D25: 0 | E25: F
A26: 13 | B26: Significado del FCF. CF producido por los activos sin tener en cuenta la financiación. ¿V o F? | D26: 0 | E26: V
A27: 14 | B27: EL CF del accionista se puede calcular exclusivamente a partir de los números del balance. ¿V o F? | D27: 0 | E27: V
A28: 15 | B28: EL FCF es una cifra totalmente real que coincide con lo que hay en caja a final de año. ¿V o F? | D28: 0 | E28: F
A29: 16 | B29: Con el CF accionista podemos ver también la rentabilidad que procede exclusivamente del activo (y no de la financiación). Basta con escribir 0 deuda en el balance. ¿V o F? | D29: 0 | E29: V
A30: 17 | B30: En la mayoría de proyectos el CF final no es muy relevante. ¿V o F? | D30: 0 | E30: F
A31: 18 | B31: La mayoría de las veces el valor de la perpetuidad no afecta a la rentabilidad del proyecto porque la perpetuidad se recibirá en el año 10 y el dinero recibido dentro de 10 años tiene poco valor hoy. ¿V o F? | D31: 0 | E31: F
A32: 19 | B32: La perpetuidad para se calcula habitualmente como Beneficio recurrente / (K − g). ¿V o F? | D32: 0 | E32: V
A33: 20 | B33: Al valor de la perpetuidad hay que restarle la deuda viva en el año en que supuestamente se recibe la perpetuidad. ¿V o F? | D33: 0 | E33: V
A34: 21 | B34: Podríamos asumir que el proyecto continúa con el mismo nivel de deuda a partir del año 10, en cuyo caso no hay que restar la deuda al valor de la perpetuidad. ¿V o F? | D34: 0 | E34: V
A35: 22 | B35: La TIR te permite comparar proyectos de igual duración y tamaño pero con distinta cadencia de CF. ¿V o F? | D35: 0 | E35: V
A36: 23 | B36: La TIR te permite comparar proyectos, cualquiera que sea su duración o tamaño; siempre elegirás el de mayor TIR. ¿V o F? | D36: 0 | E36: F
A37: 24 | B37: Si los CF esperados son muy similares cada año, la rentabilidad simple (CF / Inversión) es una aproximación razonable a la TIR (y más fácil de calcular), si el proyecto dura muchos años o (si es corto) recuperas al final lo invertido inicialmente. ¿V o F? | D37: 0 | E37: V
A38: 25 | B38: En un proyecto solo deben ser incluidos los CF futuros y específicos del proyecto (CF que son producidos por llevar a cabo el proyecto). ¿V o F? | D38: 0 | E38: V
A39: 26 | B39: En los números de un proyecto es lógico incluir un cierto porcentaje de los gastos generales de la empresa (salarios consejo, etc), pues alguien los tiene que pagar. ¿V o F? | D39: 0 | E39: F
A40: 27 | B40: Fabricas productos de limpieza para el hogar. Tu cartera tiene más de cien productos y referencias. La competencia es feroz, con muchos lanzamientos de productos nuevos cada año. Cada año lanzas cerca de veinte productos nuevos. El controller lleva un sistema de contabilidad de costes por el que un 1 % de todos los costes fijos (el salario del director general, por ejemplo) son cargados a cada producto. Estás evaluando la posibilidad de lanzar un nuevo producto. Debes incluir el cargo del 1 % como gasto (CF negativo) del proyecto. ¿V o F? | D40: 0 | E40: F
A41: 28 | B41: Misma situación que antes. Hay que Incluir la canibalización que el nuevo producto producirá en otros productos de la compañía. ¿V o F? | D41: 0 | E41: F
A42: 29 | B42: Para el proyecto C utilizas una máquina vieja con un valor contable de 20, que no tiene ningún otro uso alternativo. Hay que incluir esta máquina como inversión inicial. ¿V o F? | D42: 0 | E42: F
A43: 30 | B43: En el proyecto H utilizas una máquina vieja con un valor contable de 20, que no tiene ningún otro uso alternativo. Hay que incluir la amortización de esta máquina como gasto del proyecto en la PyG. ¿V o F? | D43: 0 | E43: V
A44: 31 | B44: Los proyectos A y B tienen la misma rentabilidad esperada. La mayor parte de la rentabilidad de A proviene de un CF final grande al final. Sin considerar otros factores, podríamos decir que el proyecto A tiene mayor riesgo que el B. ¿V o F? | D44: 0 | E44: V
A45: 32 | B45: Lo que cuenta en la decisión es el riesgo percibido, y por tanto no hace falta cuantificar el riesgo. ¿V o F? | D45: 0 | E45: F
A46: 33 | B46: Para identificar los riesgos más relevantes calculamos la TIR del proyecto en los tres escenarios de esa variable (base, óptimo y pésimo). A mayor rango, mayor riesgo. ¿V o F? | D46: 0 | E46: V
A47: 34 | B47: En nuestro análisis de riesgo hemos asumido que la probabilidad del escenario y óptimo es la misma, cuando en la realidad no tiene porque ser así. ¿V o F? | D47: 0 | E47: V
A48: 35 | B48: Las fuentes de riesgo siempre vendrán de la variabilidad en el EBIT, el capex y los gastos financieros. ¿V o F? | D48: 0 | E48: F
A49: 36 | B49: Los criterios no cuantitativos no deberían influir en las decisiones de inversión, precisamente por que no son cuantificables. ¿V o F? | D49: 0 | E49: F
A50: 37 | B50: Si hay inflación, el CF accionista aumentará y tu proyecto dará mayor TIR y será más atractivo. ¿V o F? | D50: 0 | E50: F
A51: 38 | B51: Si hay inflación, la rentabilidad nominal del proyecto sube, la real baja y el riesgo aumenta. ¿V o F? | D51: 0 | E51: V
A52: 39 | B52: Un proyecto desarrollado en Europa en 2023. La TIR esperada para el accionista es del 15 % en el escenario base, 5 % en el malo y 20 % en el optimista. Se trato pues de un proyecto de alto riesgo. ¿V o F? | D52: 0 | E52: F
A53: 40 | B53: Has invertido 2 millones en un terreno para construir un hotel. Una nueva legislación no te permite construir el hotel. Puedes vender ahora el terreno y obtener 1 millón. Pero también puedes invertir otro millón y construir un campo de golf, que dará 0,2 millones al año durante muchos años. Tu rentabilidad exigida K es del 10 %. La rentabilidad esperada del golf es de 0,2/3 < K. No deberías hacer el campo de golf. ¿V o F? | D53: 0 | E53: F
B56: TOTAL CALIFICACION OBTENIDA | D56: =SUM(D14:D53) -> 0
B57: Máxima calificación posible | D57: 40

Sheet Anex 4 HECHO
E1: Proyecto DEC. HECHO
B2: Todas las hipótesis en negrita y verde. Ver las notas explicativas dentro de cada celda.
B3: Cta. Rdos (mill €) | C3: Hipótesis | E3: 2025 | F3: =E3+1 -> 2026 | G3: =F3+1 -> 2027 | H3: =G3+1 -> 2028 | I3: =H3+1 -> 2029 | L3: Base | M3: Worst | N3: Best
B4: Ventas | C4: 400 | E4: =C4 -> 400 | F4: =E4*(1+F17) -> 412 | G4: =F4*(1+G17) -> 424.36 | H4: =G4*(1+H17) -> 437.0908 | I4: =H4*(1+I17) -> 450.203524 | L4: 400 | M4: 300 | N4: 500
B5: CMV | E5: =E4-E6 -> 300 | F5: =F4-F6 -> 313.12 | G5: 326.7572 | H5: 340.930824 | I5: 355.660784
B6: Margen bruto | E6: =E4*E18 -> 100 | F6: =F4*F18 -> 98.88 | G6: =G4*G18 -> 97.6028 | H6: =H4*H18 -> 96.159976 | I6: =I4*I18 -> 94.54274004
B7: Gastos Generales (Opex) | C7: 20 | E7: =C7 -> 20 | F7: =E7*(1+F19) -> 20.6 | G7: =F7*(1+G19) -> 21.218 | H7: =G7*(1+H19) -> 21.85454 | I7: =H7*(1+I19) -> 22.5101762
B8: EBITDA | E8: =E6-E7 -> 80 | F8: =F6-F7 -> 78.28 | G8: =G6-G7 -> 76.3848 | H8: =H6-H7 -> 74.305436 | I8: =I6-I7 -> 72.03256384
B9: Amortización | C9: 40 | E9: =$C9 -> 40 | F9: =$C9 -> 40 | G9: =$C9 -> 40 | H9: =$C9 -> 40 | I9: =$C9 -> 40
B10: EBIT | E10: =E8-E9 -> 40 | F10: =F8-F9 -> 38.28 | G10: =G8-G9 -> 36.3848 | H10: =H8-H9 -> 34.305436 | I10: =I8-I9 -> 32.03256384
B11: Gastos financieros, neto | C11: 0.05 | E11: =$C11*D33 -> 7.5 | F11: =$C11*E33 -> 9.2 | G11: =$C11*F33 -> 7.796 | H11: =$C11*G33 -> 6.39488 | I11: =$C11*H33 -> 4.9967264
B12: EBT | E12: =E10-E11 -> 32.5 | F12: =F10-F11 -> 29.08 | G12: =G10-G11 -> 28.5888 | H12: =H10-H11 -> 27.910556 | I12: =I10-I11 -> 27.03583744
B13: Impuestos | C13: 0.2 | E13: =C13*E12 -> 6.5 | F13: =$C$13*F12 -> 5.816 | G13: =$C$13*G12 -> 5.71776 | H13: =$C$13*H12 -> 5.5821112 | I13: =$C$13*I12 -> 5.407167488 | J13: Total
B14: BN, Beneficio neto | E14: =E12-E13 -> 26 | F14: =F12-F13 -> 23.264 | G14: =G12-G13 -> 22.87104 | H14: =H12-H13 -> 22.3284448 | I14: =I12-I13 -> 21.62866995 | J14: =SUM(E14:I14) -> 116.0921548
B16: Ratios de Cuenta de Resultados | J16: Media | L16: Base | M16: Worst | N16: Best
B17: Crecimiento de ventas | C17: 0.03 | E17: nd | F17: =$C17 -> 0.03 | G17: =$C17 -> 0.03 | H17: =$C17 -> 0.03 | I17: =$C17 -> 0.03 | J17: =AVERAGE(F17:J17) -> 0.03 | L17: 0.03 | M17: 0 | N17: 0.06
B18: Margen bruto / Ventas | C18: -0.01 | E18: 0.25 | F18: =E18+$C18 -> 0.24 | G18: =F18+$C18 -> 0.23 | H18: =G18+$C18 -> 0.22 | I18: =H18+$C18 -> 0.21 | J18: =AVERAGE(E18:J18) -> 0.23 | L18: -0.01 | M18: -0.02 | N18: 0
B19: Incremento de GG | C19: 0.03 | E19: nd | F19: =$C19 -> 0.03 | G19: =$C19 -> 0.03 | H19: =$C19 -> 0.03 | I19: =$C19 -> 0.03 | J19: =AVERAGE(F19:J19) -> 0.03 | L19: 0.03 | M19: 0.06 | N19: 0
B20: EBITDA /Ventas | E20: =E8/E4 -> 0.2 | F20: =F8/F4 -> 0.19 | G20: =G8/G4 -> 0.18 | H20: =H8/H4 -> 0.17 | I20: =I8/I4 -> 0.16 | J20: =AVERAGE(E20:J20) -> 0.18
B21: ROS (Beneficio/Ventas) | E21: =E14/E4 -> 0.065 | F21: =F14/F4 -> 0.05646601942 | G21: =G14/G4 -> 0.05389537185 | H21: =H14/H4 -> 0.05108422506 | I21: =I14/I4 -> 0.04804198279 | J21: =AVERAGE(F21:J21) -> 0.05237189978
B22: ROE (Beneficio / Equity) | E22: =E14/D34 -> 0.52 | F22: =F14/E34 -> 0.3061052632 | G22: =G14/F34 -> 0.2914845024 | H22: =H14/G34 -> 0.2699154778 | I22: =I14/H34 -> 0.2493061733 | J22: =AVERAGE(E22:J22) -> 0.3273622833
B23: ROA (EBIT / Activo neto) | E23: =E10/E29 -> 0.1666666667 | F23: =F10/E29 -> 0.1595 | G23: =G10/F29 -> 0.1797667984 | H23: =H10/G29 -> 0.2080731477 | I23: =I10/H29 -> 0.2513971622 | J23: =AVERAGE(F23:J23) -> 0.1996842771
B24: Dividendos pagados | C24: 0.8 | E24: 0 | F24: =$C$24*E14 -> 20.8 | G24: =$C$24*F14 -> 18.6112 | H24: 18.296832 | I24: 17.86275584 | J24: =SUM(E24:I24) -> 75.57078784
B26: Balance (Mill €) | C26: =C3 -> Hipótesis | D26: =E26-1 -> 2024 | E26: =E3 -> 2025 | F26: =F3 -> 2026 | G26: =G3 -> 2027 | H26: =H3 -> 2028 | I26: =I3 -> 2029
B27: NOF | C27: 0.2 | E27: =$C27*E4 -> 80 | F27: =$C27*F4 -> 82.4 | G27: =$C27*G4 -> 84.872 | H27: =$C27*H4 -> 87.41816 | I27: 0
B28: AF, activo fijo neto | C28: 0 | D28: 200 | E28: =D28-E9+$C28 -> 160 | F28: =E28-F9+$C28 -> 120 | G28: =F28-G9+$C28 -> 80 | H28: =G28-H9+$C28 -> 40 | I28: 0
B29: AN, activo neto | D29: =D27+D28 -> 200 | E29: 240 | F29: 202.4 | G29: 164.872 | H29: 127.41816 | I29: 0
B31: D-C Línea de crédito | C31: 0.8 | E31: =$C31*E27 -> 64 | F31: =$C31*F27 -> 65.92 | G31: 67.8976 | H31: 69.934528 | I31: 0
B32: D-L Préstamo | C32: 5 | D32: =D29-D34 -> 150 | E32: =D32-($D$32/$C$32) -> 120 | F32: =E32-($D$32/$C$32) -> 90 | G32: =F32-($D$32/$C$32) -> 60 | H32: =G32-($D$32/$C$32) -> 30 | I32: 0
B33: D, Deuda total | D33: =D31+D32 -> 150 | E33: =E31+E32 -> 184 | F33: 155.92 | G33: 127.8976 | H33: 99.934528 | I33: 0
B34: E, Equity o Patrimonio | D34: 50 | E34: =D34+E14-E24 -> 76 | F34: =E34+F14-F24 -> 78.464 | G34: =F34+G14-G24 -> 82.72384 | H34: =G34+H14-H24 -> 86.7554528 | I34: =H34+I14-I24 -> 90.52136691
B35: Financiación | D35: =D33+D34 -> 200 | E35: =E33+E34 -> 260 | F35: 234.384 | G35: 210.62144 | H35: 186.6899808 | I35: 90.52136691
C36: Caja excedente (+) o crédito necesario (-) | D36: =D35-D29 -> 0 | E36: 20 | F36: 31.984 | G36: 45.74944 | H36: 59.2718208 | I36: 90.52136691 | J36: Total
C37: Cash flow anual para accionista | E37: =E36-D36+E24 -> 20 | F37: =F36-E36+F24 -> 32.784 | G37: =G36-F36+G24 -> 32.37664 | H37: =H36-G36+H24 -> 31.8192128 | I37: =I36-H36+I24 -> 49.11230195 | J37: =SUM(E37:I37) -> 166.0921548
B39: Cálculo del CF accionista | D39: =D63 -> 0 | E39: 1 | F39: 2 | G39: 3 | H39: 4 | I39: 5 | M39: Perpetuity
B40: ± Variación de AN, activo neto | D40: -200 | E40: -40 | F40: 37.6 | G40: 37.528 | H40: 37.45384 | I40: 127.41816 | M40: K | N40: g
B41: ± Variación de Deuda | D41: =D33 -> 150 | E41: =E33-D33 -> 34 | F41: =F33-E33 -> -28.08 | G41: -28.0224 | H41: -27.963072 | I41: -99.934528 | M41: 0.2 | N41: 0
B42: +Beneficio neto | D42: =D14 -> 0 | E42: 26 | F42: 23.264 | G42: 22.87104 | H42: 22.3284448 | I42: 21.62866995 | J42: Total | M42: Benef neto | N42: =I14 -> 21.62866995
B43: CF accionista | D43: =SUM(D40:D42) -> -50 | E43: 20 | F43: 32.784 | G43: 32.37664 | H43: 31.8192128 | I43: 49.11230195 | J43: =SUM(E43:I43) -> 166.0921548 | M43: Perpetuity = | N43: =N42/(M41-N41) -> 108.1433498
D45: TIR = | E45: =IRR(D43:I43) -> 0.502923009 | H45: TIR del activo = | I45: 0.19
B47: Riesgos. Análisis de Sensibilidad | C47: Base | D47: Malo | E47: Bueno | F47: Rango | I47: No hace falta calcularlo
B48: Nivel de Ventas | C48: 400 | D48: 300 | E48: 500 | H48: K = | I48: 0.2
B49: TIR Accionista | C49: 0.5 | D49: 0.11 | E49: 0.85 | F49: =(E49-D49)*100 -> 74 | H49: VA = | I49: =NPV(I48,E43:I43) -> 93.25186106
B50: Crecimiento Ventas g | C50: 0.03 | D50: 0 | E50: 0.06 | H50: VAN = | I50: =I49+D43 -> 43.25186106
B51: TIR Accionista | C51: =C49 -> 0.5 | D51: 0.45 | E51: 0.55 | F51: =(E51-D51)*100 -> 10
B52: Caída de margen | C52: -0.01 | D52: -0.02 | E52: 0 | H52: TIR y Deuda
B53: TIR Accionista | C53: =C51 -> 0.5 | D53: 0.41 | E53: 0.58 | F53: =(E53-D53)*100 -> 17 | H53: Equity | J53: TIR
B54: Crecimiento de Opex | C54: 0.03 | D54: 0.06 | E54: 0 | H54: 75% o 150M€ | J54: 0.23
B55: TIR Accionista | C55: =C53 -> 0.5 | D55: 0.49 | E55: 0.52 | F55: =(E55-D55)*100 -> 3 | H55: 50% o 100M€ | J55: 0.31
B56: TIR, en Base, Worst & Best | C56: =C55 -> 0.5 | D56: -0.19 | E56: 0.98 | F56: =(E56-D56)*100 -> 117 | H56: 25% o 50M€ | J56: 0.5
J58: © E.M. Abascal. Sept. 2023
B60: Si quieres hacer más cálculos puedes calcular el FCF. Verás que el FCF = CF acci, si la deuda es 0.
D62: =D26 -> 2024 | E62: 2025 | F62: 2026 | G62: 2027 | H62: 2028 | I62: 2029 | L62: Perpetuity
B63: Cálculo del FCF o CF activo | D63: 0 | E63: 1 | F63: 2 | G63: 3 | H63: 4 | I63: 5 | L63: K | M63: g
B64: ± Variación de AN, activo neto | D64: =-D29 -> -200 | E64: =D29-E29 -> -40 | F64: =E29-F29 -> 37.6 | G64: =F29-G29 -> 37.528 | H64: =G29-H29 -> 37.45384 | I64: =H29-I29 -> 127.41816 | L64: 0.2 | M64: 0
B65: +EBIT x (1-t) | E65: =E10*(1-$C$13) -> 32 | F65: =F10*(1-$C$13) -> 30.624 | G65: 29.10784 | H65: 27.4443488 | I65: 25.62605107 | L65: EBIT | M65: =I10 -> 32.03256384
B66: FCF o CF del activo | D66: =D64+D65 -> -200 | E66: -8 | F66: 68.224 | G66: 66.63584 | H66: 64.8981888 | I66: 153.0442111 | L66: Perpetuity = | M66: =M65/(L64-M64) -> 160.1628192
B68: FCF. VA con | C68: Ka = | D68: 0.2 | E68: VA = | F68: =NPV(D68,E66:I66) -> 172.0759063 | G68: TIR = | H68: =IRR(D66:I66) -> 0.1525076095 | I68: VAN = | J68: =F68+D66 -> -27.92409367
J76: =J58 -> © E.M. Abascal. Sept. 2023

Sheet Anex 4 HACER
E1: Proyecto DEC. HACER
B2: Todas las hipótesis en negrita y verde. Ver las notas explicativas dentro de cada celda.
B3: Cta. Rdos (mill €) | C3: Hipótesis | E3: 2025 | F3: =E3+1 -> 2026 | G3: =F3+1 -> 2027 | H3: =G3+1 -> 2028 | I3: =H3+1 -> 2029 | L3: Base | M3: Worst | N3: Best
B4: Ventas | C4: 400 | E4: =C4 -> 400 | L4: 400 | M4: 300 | N4: 500
B5: CMV
B6: Margen bruto
B7: Gastos Generales (Opex) | C7: 20
B8: EBITDA
B9: Amortización | C9: 40
B10: EBIT
B11: Gastos financieros, neto | C11: 0.05
B12: EBT
B13: Impuestos | C13: 0.2 | J13: Total
B14: BN, Beneficio neto | J14: =SUM(E14:I14) -> 0
B16: Ratios de Cuenta de Resultados | J16: Media | L16: Base | M16: Worst | N16: Best
B17: Crecimiento de ventas | C17: 0.03 | E17: nd | F17: =$C17 -> 0.03 | G17: =$C17 -> 0.03 | H17: =$C17 -> 0.03 | I17: =$C17 -> 0.03 | J17: =AVERAGE(F17:J17) -> 0.03 | L17: 0.03 | M17: 0 | N17: 0.06
B18: Margen bruto / Ventas | C18: -0.01 | E18: 0.25 | F18: =E18+$C18 -> 0.24 | G18: =F18+$C18 -> 0.23 | H18: =G18+$C18 -> 0.22 | I18: =H18+$C18 -> 0.21 | J18: =AVERAGE(E18:J18) -> 0.23 | L18: -0.01 | M18: -0.02 | N18: 0
B19: Incremento de GG | C19: 0.03 | E19: nd | F19: =$C19 -> 0.03 | G19: =$C19 -> 0.03 | H19: =$C19 -> 0.03 | I19: =$C19 -> 0.03 | J19: =AVERAGE(F19:J19) -> 0.03 | L19: 0.03 | M19: 0.06 | N19: 0
B20: EBITDA /Ventas
B21: ROS (Beneficio/Ventas)
B22: ROE (Beneficio / Equity)
B23: ROA (EBIT / Activo neto)
B24: Dividendos pagados | C24: 0.8
B26: Balance (Mill €) | C26: =C3 -> Hipótesis | D26: =E26-1 -> 2024 | E26: =E3 -> 2025 | F26: =F3 -> 2026 | G26: =G3 -> 2027 | H26: =H3 -> 2028 | I26: =I3 -> 2029
B27: NOF | C27: 0.2
B28: AF, activo fijo neto | C28: 0 | D28: 200
B29: AN, activo neto | D29: =D27+D28 -> 200
B31: D-C Línea de crédito | C31: 0.8
B32: D-L Préstamo | C32: 5 | D32: =D29-D34 -> 150
B33: D, Deuda total | D33: =D31+D32 -> 150
B34: E, Equity o Patrimonio | D34: 50
B35: Financiación | D35: =D33+D34 -> 200
C36: Caja excedente (+) o crédito necesario (-) | D36: =D35-D29 -> 0 | J36: Total
C37: Cash flow anual para accionista | J37: =SUM(E37:I37) -> 0
B39: Cálculo del CF accionista | D39: =D63 -> 0 | E39: 1 | F39: 2 | G39: 3 | H39: 4 | I39: 5 | M39: Perpetuity
B40: ± Variación de AN, activo neto | M40: K | N40: g
B41: ± Variación de Deuda | M41: 0.2 | N41: 0
B42: +Beneficio neto | J42: Total | M42: Benef neto | N42: =I14 -> 0
B43: CF accionista | J43: =SUM(E43:I43) -> 0 | M43: Perpetuity = | N43: =N42/(M41-N41) -> 0
D45: TIR = | E45: =IRR(D43:I43) ->  | H45: TIR del activo =
B47: Riesgos. Análisis de Sensibilidad | C47: Base | D47: Malo | E47: Bueno | F47: Rango | I47: No hace falta calcularlo
B48: Nivel de Ventas | C48: 400 | D48: 300 | E48: 500 | H48: K = | I48: 0.2
B49: TIR Accionista | F49: =(E49-D49)*100 -> 0 | H49: VA = | I49: =NPV(I48,E43:I43) -> 0
B50: Crecimiento Ventas g | C50: 0.03 | D50: 0 | E50: 0.06 | H50: VAN = | I50: =I49+D43 -> 0
B51: TIR Accionista | F51: =(E51-D51)*100 -> 0
B52: Caída de margen | C52: -0.01 | D52: -0.02 | E52: 0 | H52: TIR y Deuda
B53: TIR Accionista | F53: =(E53-D53)*100 -> 0 | H53: Equity | J53: TIR
B54: Crecimiento de Opex | C54: 0.03 | D54: 0.06 | E54: 0 | H54: 75% o 150M€
B55: TIR Accionista | F55: =(E55-D55)*100 -> 0 | H55: 50% o 100M€
B56: TIR, en Base, Worst & Best | C56: =C55 -> 0 | D56: -0.19 | E56: 0.98 | F56: =(E56-D56)*100 -> 117 | H56: 25% o 50M€
J58: © E.M. Abascal. Sept. 2023
B60: Si quieres hacer más cálculos puedes calcular el FCF. Verás que el FCF = CF acci, si la deuda es 0.
D62: =D26 -> 2024 | E62: 2025 | F62: 2026 | G62: 2027 | H62: 2028 | I62: 2029 | L62: Perpetuity
B63: Cálculo del FCF o CF activo | D63: 0 | E63: 1 | F63: 2 | G63: 3 | H63: 4 | I63: 5 | L63: K | M63: g
B64: ± Variación de AN, activo neto | D64: =-D29 -> -200 | E64: =D29-E29 -> 200 | F64: =E29-F29 -> 0 | G64: =F29-G29 -> 0 | H64: =G29-H29 -> 0 | I64: =H29-I29 -> 0 | L64: 0.2 | M64: 0
B65: +EBIT x (1-t) | E65: =E10*(1-$C$13) -> 0 | F65: =F10*(1-$C$13) -> 0 | G65: 0 | H65: 0 | I65: 0 | L65: EBIT | M65: =I10 -> 0
B66: FCF o CF del activo | D66: =D64+D65 -> -200 | E66: 200 | F66: 0 | G66: 0 | H66: 0 | I66: 0 | L66: Perpetuity = | M66: =M65/(L64-M64) -> 0
B68: FCF. VA con | C68: Ka = | D68: 0.2 | E68: VA = | F68: =NPV(D68,E66:I66) -> 166.6666667 | G68: TIR = | H68: =IRR(D66:I66) -> 0 | I68: VAN = | J68: =F68+D66 -> -33.33333333
J76: =J58 -> © E.M. Abascal. Sept. 2023

Sheet Anexo 2 PT (hidden)
F1: Projeto Tablets. Previsão do DRE e do Balanço
E3: Laptops | I3: Previsão Tablets
B4: DRE (milhões €) | D4: Hipóteses | E4: 2023 | G4: 2025 | H4: =G4+1 -> 2026 | I4: =H4+1 -> 2027 | J4: =I4+1 -> 2028 | K4: =J4+1 -> 2029 | N4: Base | O4: Pior | P4: Melhor
B5: Vendas | C5: =200 -> 200 | D5: (1) | E5: 200 | G5: =C5 -> 200 | H5: =G5*(1+H19) -> 220 | I5: =H5*(1+I19) -> 242 | J5: =I5*(1+J19) -> 266.2 | K5: =J5*(1+K19) -> 266.2 | N5: 200 | O5: 150 | P5: 250
B6: CMV | E6: 162 | G6: =(G5-G7) -> 160 | H6: =(H5-H7) -> 178.2 | I6: =(I5-I7) -> 198.44 | J6: =(J5-J7) -> 220.946 | K6: =(K5-K7) -> 226.27
B7: Margem bruta | D7: (2) | E7: =E5-E6 -> 38 | G7: =G5*G20 -> 40 | H7: =H5*H20 -> 41.8 | I7: =I5*I20 -> 43.56 | J7: =J5*J20 -> 45.254 | K7: =K5*K20 -> 39.93
B8: Despesas de vendas | C8: 0.05 | E8: =C$8*E5 -> 10 | G8: =$C8*G5 -> 10 | H8: =$C8*H5 -> 11 | I8: =$C8*I5 -> 12.1 | J8: =$C8*J5 -> 13.31 | K8: =$C8*K5 -> 13.31
B9: Opex | C9: 8 | D9: (3) | E9: 8 | G9: =C9 -> 8 | H9: =G9*(1+H21) -> 8.24 | I9: =H9*(1+I21) -> 8.4872 | J9: =I9*(1+J21) -> 8.741816 | K9: =J9*(1+K21) -> 9.00407048
B10: EBITDA | E10: =E7-E8-E9 -> 20 | G10: =G7-G8-G9 -> 22 | H10: =H7-H8-H9 -> 22.56 | I10: =I7-I8-I9 -> 22.9728 | J10: =J7-J8-J9 -> 23.202184 | K10: =K7-K8-K9 -> 17.61592952
B11: Depreciação | C11: 2 | D11: (3) | E11: 5 | G11: =C11 -> 2 | H11: =$C11 -> 2 | I11: =$C11 -> 2 | J11: =$C11 -> 2 | K11: =$C11 -> 2
B12: EBIT | E12: =E10-E11 -> 15 | G12: =G10-G11 -> 20 | H12: =H10-H11 -> 20.56 | I12: =I10-I11 -> 20.9728 | J12: =J10-J11 -> 21.202184 | K12: =K10-K11 -> 15.61592952
B13: Despesas financeiras | C13: 0.05 | D13: (4) | E13: 2.5 | G13: =$C13*F36 -> 0.6 | H13: =$C13*G36 -> 2.05 | I13: =$C13*H36 -> 2.06 | J13: =$C13*I36 -> 2.086 | K13: =$C13*J36 -> 2.1296
B14: EBT | E14: =E12-E13 -> 12.5 | G14: =G12-G13 -> 19.4 | H14: =H12-H13 -> 18.51 | I14: =I12-I13 -> 18.9128 | J14: =J12-J13 -> 19.116184 | K14: =K12-K13 -> 13.48632952
B15: Impostos | C15: 0.25 | D15: (4) | E15: =C15*E14 -> 3.125 | G15: =$C$15*G14 -> 4.85 | H15: =$C$15*H14 -> 4.6275 | I15: =$C$15*I14 -> 4.7282 | J15: =$C$15*J14 -> 4.779046 | K15: =$C$15*K14 -> 3.37158238
B16: LL, Lucro líquido | E16: =E14-E15 -> 9.375 | G16: =G14-G15 -> 14.55 | H16: =H14-H15 -> 13.8825 | I16: =I14-I15 -> 14.1846 | J16: =J14-J15 -> 14.337138 | K16: =K14-K15 -> 10.11474714
B18: Índices do DRE | I18: Hipóteses (em negrito verde) | N18: =N4 -> Base | O18: =O4 -> Pior | P18: =P4 -> Melhor
B19: Crescimento vendas | C19: 0.1 | D19: (1) | E19: nd | G19: nd | H19: =C19 -> 0.1 | I19: =H19 -> 0.1 | J19: =I19 -> 0.1 | K19: 0 | N19: 0.1 | O19: 0 | P19: 0.15
B20: Margem bruta/Vendas | C20: -0.01 | D20: (2) | E20: =E7/E5 -> 0.19 | G20: 0.2 | H20: =G20+$C20 -> 0.19 | I20: =H20+$C20 -> 0.18 | J20: =I20+$C20 -> 0.17 | K20: 0.15 | N20: -0.01 | O20: -0.02 | P20: 0
B21: Incremento de Opex | C21: 0.03 | D21: (3) | E21: 0.05 | G21: =C21 -> 0.03 | H21: =G21 -> 0.03 | I21: =H21 -> 0.03 | J21: =I21 -> 0.03 | K21: =J21 -> 0.03
B22: Opex / Vendas | E22: =E9/E5 -> 0.04 | G22: =G9/G5 -> 0.04 | H22: =H9/H5 -> 0.03745454545 | I22: =I9/I5 -> 0.03507107438 | J22: =J9/J5 -> 0.03283927874
B23: EBITDA / Vendas | E23: =E10/E5 -> 0.1 | G23: =G10/G5 -> 0.11 | H23: =H10/H5 -> 0.1025454545 | I23: =I10/I5 -> 0.09492892562 | J23: =J10/J5 -> 0.08716072126 | K23: Media
B24: ROS (Lucro / Vendas) | E24: =E16/E5 -> 0.046875 | G24: =G16/G5 -> 0.07275 | H24: =H16/H5 -> 0.06310227273 | I24: =I16/I5 -> 0.05861404959 | J24: =J16/J5 -> 0.05385851991 | K24: =AVERAGE(G24:K24) -> 0.06208121056
B25: ROE (Lucro / Capital próprio) | E25: =E16/(E37-E16) -> 0.2100840336 | G25: =G16/G37 -> 0.645232816 | H25: =H16/H37 -> 0.381047142 | I25: =I16/I37 -> 0.2802333599 | J25: =J16/J37 -> 0.2207267523 | K25: =AVERAGE(G25:K25) -> 0.3818100175 | Q25: ROE = | R25: ROS x | S25: Turnover | T25: x Levarage
B26: RONA (EBIT / Ativo líquido) | E26: =E12/E32 -> 0.1898734177 | G26: =G12/G32 -> 0.3333333333 | H26: =H12/H32 -> 0.32125 | I26: =I12/I32 -> 0.306619883 | J26: =J12/J32 -> 0.2894891316 | K26: =AVERAGE(G26:K26) -> 0.312673087 | P26: Ano 1 | Q26: =R26*S26*T26 -> 0.645232816 | R26: =G24 -> 0.07275 | S26: =G5/G32 -> 3.333333333 | T26: =G32/G37 -> 2.66075388
P27: Ano 4 | Q27: =R27*S27*T27 -> 0.2207267523 | R27: =J24 -> 0.05385851991 | S27: =J5/J32 -> 3.634625887 | T27: =J32/J37 -> 1.12756307
E28: =E3 -> Laptops | H28: =I3 -> Previsão Tablets
B29: Balanço (Mill €) | D29: Hipótesis | E29: =E4 -> 2023 | F29: 2024 | G29: =G4 -> 2025 | H29: =H4 -> 2026 | I29: =I4 -> 2027 | J29: =J4 -> 2028
B30: NOF | C30: 0.2 | D30: (5) | E30: 29 | F30: 0 | G30: =$C30*G5 -> 40 | H30: =$C30*H5 -> 44 | I30: =$C30*I5 -> 48.4 | J30: =$C30*J5 -> 53.24
B31: AF, ativo fixo líquido | C31: 2 | D31: (5) | E31: 50 | F31: 20 | G31: =F31-G11+$C31 -> 20 | H31: =G31-H11+$C31 -> 20 | I31: =H31-I11+$C31 -> 20 | J31: =I31-J11+$C31 -> 20
B32: AL, ativo líquido | E32: =E30+E31 -> 79 | F32: 20 | G32: 60 | H32: 64 | I32: 68.4 | J32: 73.24
K33: Media
B34: D-C, Dívida de curto prazo | C34: 0.8 | D34: (6) | E34: 25 | F34: =$C$34*F30 -> 0 | G34: =$C$34*G30 -> 32 | H34: =$C$34*H30 -> 35.2 | I34: =$C$34*I30 -> 38.72 | J34: =$C$34*J30 -> 42.592 | K34: =AVERAGE(F34:J34) -> 29.7024
B35: D-L, Dívida de longo prazo | C35: 4 | D35: anos | E35: 0 | F35: 12 | G35: =F35-($F$35/$C$35) -> 9 | H35: =G35-($F$35/$C$35) -> 6 | I35: =H35-($F$35/$C$35) -> 3 | J35: =I35-($F$35/$C$35) -> 0 | K35: =AVERAGE(F35:J35) -> 6
B36: D, Dívida total | E36: =E34+E35 -> 25 | F36: 12 | G36: 41 | H36: 41.2 | I36: 41.72 | J36: 42.592
B37: PL, Patrimônio Líquido | D37: (7) | E37: 54 | F37: =20-F35 -> 8 | G37: =F37+G16 -> 22.55 | H37: =G37+H16 -> 36.4325 | I37: =H37+I16 -> 50.6171 | J37: =I37+J16 -> 64.954238 | K37: =AVERAGE(F37:J37) -> 36.5107676
B38: Financiamento | E38: =+E34+E35+E37 -> 79 | F38: =F36+F37 -> 20 | G38: =G36+G37 -> 63.55 | H38: =H36+H37 -> 77.6325 | I38: =I36+I37 -> 92.3371 | J38: =J36+J37 -> 107.546238
B39: Caixa excedente (+) | D39: (8) | E39: =E38-E32 -> 0 | F39: 0 | G39: 3.55 | H39: 13.6325 | I39: 23.9371 | J39: 34.306238
B40: Fluxo de caixa anual para o acion. | D40: (8) | F40: =-(F37-F39) -> -8 | G40: =G39-F39 -> 3.55 | H40: =H39-G39 -> 10.0825 | I40: =I39-H39 -> 10.3046 | J40: =J39-I39 -> 10.369138
B43: Diretrizes para a previsão de DRE e Balanços
B44: Todas as hipóteses em negrito e verde.
A45: (1) | B45: Vendas. Cenário base 200. Pessimista 150. Otimista 250.
A46: (1) | B46: Crescimento das vendas: 10% no cenário base, 15% no otimista e 0% no pessimista.
A47: (2) | B47: Margem / Vendas. Cenário base reduz 1% anualmente. Otimista 0%, pessimismo, redução anual de -2%.
A48: (3) | B48: Despesas gerais, aumentam com a inflação, 3% ao ano. Amortização, valor constante, assume-se €2M por ano.
A49: (4) | B49: Juros, 5% x dívida total (curto e longo prazo) do ano anterior. Taxa de imposto = 25%.
A50: (5) | B50: NOF = 20% das Vendas. Novo investimento = amortização, ou seja, AF constante. Novo investimento =2 (célula C31).
A51: (5) | B51: AF do ano anterior - amortização + capex
A52: (6) | B52: Dívida de curto prazo = percentual do NOF. No caso base 80%. Dívida de longo prazo é amortizada em 4 anos.
A53: (7) | B53: Equity. Cenário base 8M. Podemos modificá-lo: aumentar ou reduzir dívida e equity. A cada ano, adicionar o lucro do ano.
A54: (8) | B54: Caixa que teremos no balanço. A diferença de caixa de um ano para o outro é o FC do acionista.
K57: © E.M. Abascal. Sept 2022
F58: Projeto Tablets. Cálculo dos FC, Retorno e Riscos
F60: =F29 -> 2024 | G60: =G29 -> 2025 | H60: =H29 -> 2026 | I60: =I29 -> 2027 | J60: =J29 -> 2028
B61: Cálculo do FC acionista | F61: 0 | G61: 1 | H61: 2 | I61: 3 | J61: 4 | N61: Perpetuity
B62: Variação de ativo líquido AL | D62: (1) | F62: =-F32 -> -20 | G62: =F32-G32 -> -40 | H62: =G32-H32 -> -4 | I62: =H32-I32 -> -4.4 | J62: =I32-J32 -> -4.84 | N62: K | O62: g
B63: Variação da Dívida | D63: (2) | F63: =F36 -> 12 | G63: =G36-F36 -> 29 | H63: =H36-G36 -> 0.2 | I63: =I36-H36 -> 0.52 | J63: =J36-I36 -> 0.872 | N63: =D69 -> 0.2 | O63: 0
B64: Lucro líquido | G64: =G16 -> 14.55 | H64: =H16 -> 13.8825 | I64: =I16 -> 14.1846 | J64: =J16 -> 14.337138 | N64: Benef neto | O64: =K16 -> 10.11474714
B65: Valor final VF | J65: =K68 -> 30.648 | N65: Perpetuity = | O65: =O64/(N63-O63) -> 50.5737357
B66: FC acionista | D66: (3) | F66: =SUM(F62:F64) -> -8 | G66: =SUM(G62:G64) -> 3.55 | H66: =SUM(H62:H64) -> 10.0825 | I66: =SUM(I62:I64) -> 10.3046 | J66: =SUM(J62:J65) -> 41.017138
B68: Valor final usando perpetuidade | E68: =K16/D69 -> 50.5737357 | F68: Valor final se vendemos os ativos (valor contábil) | K68: =J32-J36 -> 30.648
B69: FC acionista, VP com | C69: Ke = | D69: 0.2 | E69: VP = | F69: =NPV(D69,G66:J66) -> 35.70402103 | G69: VPL = | H69: =F69+F66 -> 27.70402103 | I69: TIR = | J69: =IRR(F66:J66) -> 1.014274736
N71: Perpetuity
B72: Cálculo do FCF ou FC ativo | F72: =F61 -> 0 | G72: =G61 -> 1 | H72: =H61 -> 2 | I72: =I61 -> 3 | J72: =J61 -> 4 | N72: K | O72: g
B73: ± Variação de AL, ativo líquido | D73: (1) | F73: =-F32 -> -20 | G73: =F32-G32 -> -40 | H73: =G32-H32 -> -4 | I73: =H32-I32 -> -4.4 | J73: =I32-J32 -> -4.84 | N73: 0.2 | O73: 0
B74: EBIT (1-t) | G74: =G12*(1-$C$15) -> 15 | H74: =H12*(1-$C$15) -> 15.42 | I74: =I12*(1-$C$15) -> 15.7296 | J74: =J12*(1-$C$15) -> 15.901638 | N74: EBIT (1-t) | O74: =K12*(1-C15) -> 11.71194714
B75: Valor final VF | J75: =J32 -> 73.24 | N75: Perpetuity = | O75: =O74/(N73-O73) -> 58.5597357
B76: FCF ou FC do ativo | F76: =F73+F74 -> -20 | G76: =G73+G74 -> -25 | H76: =H73+H74 -> 11.42 | I76: =I73+I74 -> 11.3296 | J76: =J73+J74+J75 -> 84.301638
I78: TIR = | J78: =IRR(F76:J76) -> 0.3234154471
D79: =20% -> 0.2
B80: Riscos: Análise de Sensibilidade
C82: Riesgo Mayor (4)
B83: Cenários | C83: Base | D83: Pior | E83: Melhor | F83: Intervalo | J83: Pior e Melhor Cenários (5)
B84: Nivel de Vendas | C84: 200 | D84: 150 | E84: 250 | H84: Cenários | J84: TIR
B85: TIR Acionista | C85: 1.01 | D85: 0.6 | E85: 1.44 | F85: =E85-D85 -> 0.84 | H85: Pior | J85: 0.39
B86: Crecimento g Vendas | C86: 0.1 | D86: 0 | E86: 0.15 | H86: Base | J86: 1.01
B87: TIR Acionista | C87: =C85 -> 1.01 | D87: 0.89 | E87: 1.07 | F87: =E87-D87 -> 0.18 | H87: Melhor | J87: 1.62
B88: Queda de Margem | C88: -0.01 | D88: -0.02 | E88: 0 | H88: Intervalo | J88: =J87-J85 -> 1.23
B89: TIR Acionista | C89: =C85 -> 1.01 | D89: 0.89 | E89: 1.13 | F89: =E89-D89 -> 0.24
H90: TIR e Nível de PL e Dívida (6)
H91: PL | J91: TIR
H92: €15M | J92: 0.7
H93: €10M | J93: 0.89
H94: €8M | J94: 1.01
H95: €5M | J95: 1.32
B97: Diretrizes para o cálculo de FC e análise de riscos
A98: (1) | B98: Do balanço (linha 32). AN do ano passado - AN deste ano. Sinal negativo significa que investimos, FC negativo.
A99: (2) | B99: Do balanço (linha 36). Dívida deste ano - dívida do ano passado. Sinal negativo = devolução de dívida, FC negativo.
A100: (3) | B100: FC acionista que receberemos. Os números devem coincidir com os da linha 40 (calculados a partir do caixa no balanço).
A101: (4) | B101: Calcular TIR acionista, quando as vendas mudam e as outras variáveis permanecem constantes.
B102: Mesmo análise para crescimento de vendas e queda da margem.
B103: O principal risco é o nível de vendas, como observado no Rango.
B104: Usar o botão Cenário Base para retornar todas as variáveis ao cenário base.
A105: (5) | B105: TIR do acionista se tudo der errado ou se tudo der certo.
A106: (6) | B106: TIR do acionista se investirmos, 15, 10 ou 5 milhões de capital próprio ou equity.
K108: =K57 -> © E.M. Abascal. Sept 2022

Sheet Perguntas (hidden)
B1: Exercícios de autoavaliação para realizar uma vez concluído o módulo de Análise de Projetos de Investimento.
B3: Um dos resultados do módulo de Finanças Operacionais é que você acaba aprendendo contabilidade: ou seja, você pode ver com clareza como cada operação é contabilizada no balanço e na demonstração de resultados (DRE).
B4: Para assegurar que isso é assim, responda ao seguinte questionário. Escreva suas respostas nas colunas C, D, E (abaixo).
B5: Se houver uma única resposta, escreva na coluna C. Se houver várias, utilize as colunas D e E.
B6: Verifique suas respostas clicando no número 2 com o quadro no canto superior esquerdo; ou no X com o quadro acima da coluna J.
B7: As colunas G, H, I se expandirão com as respostas corretas.
B8: Para que a classificação automática funcione, você deve usar a palavra exata (como indicado nas notas incluídas nas células).
B9: Se não for necessária uma resposta técnica, dê uma resposta binária: V ou F.
B10: Se tiver dúvidas, construa seus próprios exemplos para esclarecimento.
B11: © IESE. E.M. Abascal 2017. Versión 6/8/23
C12: Respostas | D12: Pontuação | E12: Resposta
A13: Nº | B13: PERGUNTAS | C13: V ou F | D13: Obtida | E13: correta
A14: 1 | B14: Ativo líquido (AL) = Ativo fixo líquido + Capex. V ou F? | D14: =IF(C14=E14,1,0) -> 0 | E14: F
A15: 2 | B15: O ativo líquido está sempre financiado com patrimônio + dívida. V ou F? | D15: 0 | E15: V
A16: 3 | B16: A fórmula de DFC diz que se você pagar o preço P e tiver um fluxo de caixa esperado a ser recebido nos anos futuros de 1 a n, você obterá a rentabilidade TIR. V ou F? | D16: 0 | E16: V
A17: 4 | B17: Projeto com um fluxo de caixa esperado de € 10/ano. Investimento inicial de €100. Se você quiser obter uma TIR >10%, deve pagar menos no início. V ou F? | D17: 0 | E17: V
A18: 5 | B18: O primeiro passo para a análise de projetos de investimento é o cálculo do FCF. V ou F? | D18: 0 | E18: F
A19: 6 | B19: Se o projeto promete boa rentabilidade, deve ser feito, mesmo que o negócio seja medíocre. V ou F? | D19: 0 | E19: F
A20: 7 | B20: Normalmente você não precisará do DRE e do balanço do projeto porque esses dados já estão incluídos no cálculo dos fluxos de caixa. V ou F? | D20: 0 | E20: F
A21: 8 | B21: Como regra geral, não investimos em negócios que não gostamos ou que não entendemos. V ou F? | D21: 0 | E21: V
A22: 9 | B22: Gostamos do negócio, mas não das previsões do DRE e balanços. O normal é não investir. V ou F? | D22: 0 | E22: V
A23: 10 | B23: O fator chave e quase o único para a decisão de investimento é a TIR esperada. V ou F? | D23: 0 | E23: F
A24: 11 | B24: O normal é que o número de anos da previsão coincida com o número de anos do projeto. V ou F? | D24: 0 | E24: V
A25: 12 | B25: O FCF = EBIT − Variação de AL + Variação de Dívida. | D25: 0 | E25: F
A26: 13 | B26: Significado do FCF: Fluxo de Caixa gerado pelos ativos sem considerar o financiamento. V ou F? | D26: 0 | E26: V
A27: 14 | B27: O fluxo de caixa do acionista pode ser calculado exclusivamente a partir dos números do balanço. V ou F? | D27: 0 | E27: V
A28: 15 | B28: O FCF é um número totalmente real que coincide com o que há no caixa ao final do ano. V ou F? | D28: 0 | E28: F
A29: 16 | B29: Com o fluxo de caixa do acionista, também podemos ver a rentabilidade que vem exclusivamente dos ativos (e não do financiamento). Basta escrever 0 de dívida no balanço. V ou F? | D29: 0 | E29: V
A30: 17 | B30: Na maioria dos projetos, o fluxo de caixa final não é muito relevante. V ou F? | D30: 0 | E30: F
A31: 18 | B31: A maior parte das vezes, o valor da perpetuidade não afeta a rentabilidade do projeto, pois a perpetuidade será recebida no ano 10, e o dinheiro recebido em 10 anos tem pouco valor hoje. V ou F? | D31: 0 | E31: F
A32: 19 | B32: A perpetuidade geralmente é calculada como Lucro recorrente / (K − g). V ou F? | D32: 0 | E32: V
A33: 20 | B33: Do valor da perpetuidade, devemos subtrair a dívida viva no ano em que supostamente se recebe a perpetuidade. V ou F? | D33: 0 | E33: V
A34: 21 | B34: Podemos assumir que o projeto continua com o mesmo nível de dívida a partir do ano 10, e nesse caso não precisamos subtrair a dívida do valor da perpetuidade. V ou F? | D34: 0 | E34: V
A35: 22 | B35: A TIR permite comparar projetos de igual duração e tamanho, mas com diferentes padrões de fluxo de caixa. V ou F? | D35: 0 | E35: V
A36: 23 | B36: A TIR permite comparar projetos, independentemente de sua duração ou tamanho; sempre escolherá o de maior TIR. V ou F? | D36: 0 | E36: F
A37: 24 | B37: Se os fluxos de caixa esperados forem muito semelhantes a cada ano, a rentabilidade simples (FC / Investimento) é uma aproximação razoável à TIR (e mais fácil de calcular), desde que o projeto tenha muitos anos ou, se for curto, recupere o investimento inicial ao final. V ou F? | D37: 0 | E37: V
A38: 25 | B38: Em um projeto, apenas os fluxos de caixa futuros e específicos do projeto devem ser incluídos (fluxos de caixa gerados pela execução do projeto). V ou F? | D38: 0 | E38: V
A39: 26 | B39: Nos números de um projeto, é lógico incluir uma certa porcentagem das despesas gerais da empresa (salários do conselho, etc.), pois alguém tem que pagá-las. V ou F? | D39: 0 | E39: F
A40: 27 | B40: Você fabrica produtos de limpeza para o lar. Seu portfólio tem mais de cem produtos e referências. A concorrência é feroz, com muitos lançamentos de novos produtos a cada ano. Todos os anos, você lança cerca de vinte novos produtos. O controlador usa um sistema de contabilidade de custos, no qual 1% de todos os custos fixos (por exemplo, o salário do diretor-geral) é alocado para cada produto. Você está avaliando a possibilidade de lançar um novo produto. Deve incluir o custo de 1% como despesa (fluxo de caixa negativo) do projeto. V ou F? | D40: 0 | E40: F
A41: 28 | B41: Mesma situação anterior. A canibalização que o novo produto causará em outros produtos da empresa deve ser incluída. V ou F? | D41: 0 | E41: F
A42: 29 | B42: Para o projeto C, você usa uma máquina antiga com um valor contábil de 20, que não tem outro uso alternativo. Esta máquina deve ser incluída como investimento inicial. V ou F? | D42: 0 | E42: F
A43: 30 | B43: No projeto H, você usa uma máquina antiga com um valor contábil de 20, que não tem outro uso alternativo. A depreciação dessa máquina deve ser incluída como despesa do projeto no DRE. V ou F? | D43: 0 | E43: V
A44: 31 | B44: Os projetos A e B têm a mesma rentabilidade esperada. A maior parte da rentabilidade de A vem de um grande fluxo de caixa final. Sem considerar outros fatores, podemos dizer que o projeto A tem mais risco do que o B. V ou F? | D44: 0 | E44: V
A45: 32 | B45: O que importa na decisão é o risco percebido e, portanto, não é necessário quantificar o risco. V ou F? | D45: 0 | E45: F
A46: 33 | B46: Para identificar os riscos mais relevantes, calculamos a TIR do projeto nos três cenários dessa variável (base, ótimo e pessimista). Quanto maior o intervalo, maior o risco. V ou F? | D46: 0 | E46: V
A47: 34 | B47: Em nossa análise de risco, assumimos que a probabilidade dos cenários otimista e pessimista é a mesma, o que na realidade pode não ser verdade. V ou F? | D47: 0 | E47: V
A48: 35 | B48: As fontes de risco sempre virão da variabilidade no EBIT, capex e despesas financeiras. V ou F? | D48: 0 | E48: F
A49: 36 | B49: Critérios não quantitativos não devem influenciar as decisões de investimento, precisamente porque não são quantificáveis. V ou F? | D49: 0 | E49: F
A50: 37 | B50: Se houver inflação, o fluxo de caixa do acionista aumentará e seu projeto terá maior TIR e será mais atraente. V ou F? | D50: 0 | E50: F
A51: 38 | B51: Se houver inflação, a rentabilidade nominal do projeto aumenta, mas a real diminui, e o risco aumenta. V ou F? | D51: 0 | E51: V
A52: 39 | B52: Um projeto desenvolvido na Europa em 2023. A TIR esperada para o acionista é de 15% no cenário base, 5% no pessimista e 20% no otimista. Portanto, é um projeto de alto risco. V ou F? | D52: 0 | E52: F
A53: 40 | B53: Você investiu 2 milhões em um terreno para construir um hotel. Nova legislação impede a construção do hotel. Você pode vender o terreno agora e receber 1 milhão. Mas também pode investir outro milhão e construir um campo de golfe, que gerará 0,2 milhões por ano durante muitos anos. Sua TIR exigida (K) é de 10%. A TIR esperada do campo de golfe é de 0,2/3 < K. Você não deve fazer o campo de golfe. V ou F? | D53: 0 | E53: F
B56: PONTUAÇÃO TOTAL OBTIDA | D56: =SUM(D14:D53) -> 0
B57: Máximo pontuação possível | D57: 40

Sheet Anexo 4 FEITO (hidden)
E1: Projeto DEC - FEITO
B2: Todas as hipóteses em negrito e verde. Veja as notas explicativas dentro de cada célula.
B3: DRE (milhões €) | C3: Hipóteses | E3: 2025 | F3: =E3+1 -> 2026 | G3: =F3+1 -> 2027 | H3: =G3+1 -> 2028 | I3: =H3+1 -> 2029 | L3: Base | M3: Pior | N3: Melhor
B4: Vendas | C4: 400 | E4: =C4 -> 400 | F4: =E4*(1+F17) -> 412 | G4: =F4*(1+G17) -> 424.36 | H4: =G4*(1+H17) -> 437.0908 | I4: =H4*(1+I17) -> 450.203524 | L4: 400 | M4: 300 | N4: 500
B5: CMV | E5: =E4-E6 -> 300 | F5: =F4-F6 -> 313.12 | G5: =G4-G6 -> 326.7572 | H5: =H4-H6 -> 340.930824 | I5: =I4-I6 -> 355.660784
B6: Margem bruta | E6: =E4*E18 -> 100 | F6: =F4*F18 -> 98.88 | G6: =G4*G18 -> 97.6028 | H6: =H4*H18 -> 96.159976 | I6: =I4*I18 -> 94.54274004
B7: Despesas Gerais (Opex) | C7: 20 | E7: =C7 -> 20 | F7: =E7*(1+F19) -> 20.6 | G7: =F7*(1+G19) -> 21.218 | H7: =G7*(1+H19) -> 21.85454 | I7: =H7*(1+I19) -> 22.5101762
B8: EBITDA | E8: =E6-E7 -> 80 | F8: =F6-F7 -> 78.28 | G8: =G6-G7 -> 76.3848 | H8: =H6-H7 -> 74.305436 | I8: =I6-I7 -> 72.03256384
B9: Depreciação | C9: 40 | E9: =$C9 -> 40 | F9: =$C9 -> 40 | G9: =$C9 -> 40 | H9: =$C9 -> 40 | I9: =$C9 -> 40
B10: EBIT | E10: =E8-E9 -> 40 | F10: =F8-F9 -> 38.28 | G10: =G8-G9 -> 36.3848 | H10: =H8-H9 -> 34.305436 | I10: =I8-I9 -> 32.03256384
B11: Despesas financeiras, líquidas | C11: 0.05 | E11: =$C11*D33 -> 7.5 | F11: =$C11*E33 -> 9.2 | G11: =$C11*F33 -> 7.796 | H11: =$C11*G33 -> 6.39488 | I11: =$C11*H33 -> 4.9967264
B12: EBT | E12: =E10-E11 -> 32.5 | F12: =F10-F11 -> 29.08 | G12: =G10-G11 -> 28.5888 | H12: =H10-H11 -> 27.910556 | I12: =I10-I11 -> 27.03583744
B13: Impostos | C13: 0.2 | E13: =C13*E12 -> 6.5 | F13: =$C$13*F12 -> 5.816 | G13: =$C$13*G12 -> 5.71776 | H13: =$C$13*H12 -> 5.5821112 | I13: =$C$13*I12 -> 5.407167488 | J13: Total
B14: LL, Lucro líquido | E14: =E12-E13 -> 26 | F14: =F12-F13 -> 23.264 | G14: =G12-G13 -> 22.87104 | H14: =H12-H13 -> 22.3284448 | I14: =I12-I13 -> 21.62866995 | J14: =SUM(E14:I14) -> 116.0921548
B16: Índices do DRE | J16: Média | L16: Base | M16: =M3 -> Pior | N16: =N3 -> Melhor
B17: Crescimento de vendas | C17: 0.03 | E17: nd | F17: =$C17 -> 0.03 | G17: =$C17 -> 0.03 | H17: =$C17 -> 0.03 | I17: =$C17 -> 0.03 | J17: =AVERAGE(F17:J17) -> 0.03 | L17: 0.03 | M17: 0 | N17: 0.06
B18: Margem bruta / Vendas | C18: -0.01 | E18: 0.25 | F18: =E18+$C18 -> 0.24 | G18: =F18+$C18 -> 0.23 | H18: =G18+$C18 -> 0.22 | I18: =H18+$C18 -> 0.21 | J18: =AVERAGE(E18:J18) -> 0.23 | L18: -0.01 | M18: -0.02 | N18: 0
B19: Incremento das Despesas Gerais (GG) | C19: 0.03 | E19: nd | F19: =$C19 -> 0.03 | G19: =$C19 -> 0.03 | H19: =$C19 -> 0.03 | I19: =$C19 -> 0.03 | J19: =AVERAGE(F19:J19) -> 0.03 | L19: 0.03 | M19: 0.06 | N19: 0
B20: EBITDA / Vendas | E20: =E8/E4 -> 0.2 | F20: =F8/F4 -> 0.19 | G20: =G8/G4 -> 0.18 | H20: =H8/H4 -> 0.17 | I20: =I8/I4 -> 0.16 | J20: =AVERAGE(E20:J20) -> 0.18
B21: ROS (Lucro / Vendas) | E21: =E14/E4 -> 0.065 | F21: =F14/F4 -> 0.05646601942 | G21: =G14/G4 -> 0.05389537185 | H21: =H14/H4 -> 0.05108422506 | I21: =I14/I4 -> 0.04804198279 | J21: =AVERAGE(F21:J21) -> 0.05237189978
B22: ROE (Lucro / Equity) | E22: =E14/D34 -> 0.52 | F22: =F14/E34 -> 0.3061052632 | G22: =G14/F34 -> 0.2914845024 | H22: =H14/G34 -> 0.2699154778 | I22: =I14/H34 -> 0.2493061733 | J22: =AVERAGE(E22:J22) -> 0.3273622833
B23: ROA (EBIT / Ativo líquido) | E23: =E10/E29 -> 0.1666666667 | F23: =F10/E29 -> 0.1595 | G23: =G10/F29 -> 0.1797667984 | H23: =H10/G29 -> 0.2080731477 | I23: =I10/H29 -> 0.2513971622 | J23: =AVERAGE(F23:J23) -> 0.1996842771
B24: Dividendos pagos | C24: 0.8 | E24: 0 | F24: =$C$24*E14 -> 20.8 | G24: =$C$24*F14 -> 18.6112 | H24: =$C$24*G14 -> 18.296832 | I24: =$C$24*H14 -> 17.86275584 | J24: =SUM(E24:I24) -> 75.57078784
B26: Balanço (Mill €) | C26: Hipóteses | D26: =E26-1 -> 2024 | E26: =E3 -> 2025 | F26: =F3 -> 2026 | G26: =G3 -> 2027 | H26: =H3 -> 2028 | I26: =I3 -> 2029
B27: NOF | C27: 0.2 | E27: =$C27*E4 -> 80 | F27: =$C27*F4 -> 82.4 | G27: =$C27*G4 -> 84.872 | H27: =$C27*H4 -> 87.41816 | I27: 0
B28: AF, ativo fixo líquido | C28: 0 | D28: 200 | E28: =D28-E9+$C28 -> 160 | F28: =E28-F9+$C28 -> 120 | G28: =F28-G9+$C28 -> 80 | H28: =G28-H9+$C28 -> 40 | I28: 0
B29: AL, ativo líquido | D29: =D27+D28 -> 200 | E29: 240 | F29: 202.4 | G29: 164.872 | H29: 127.41816 | I29: 0
B31: D-C Linha de crédito | C31: 0.8 | E31: =$C31*E27 -> 64 | F31: =$C31*F27 -> 65.92 | G31: =$C31*G27 -> 67.8976 | H31: =$C31*H27 -> 69.934528 | I31: =$C31*I27 -> 0
B32: D-L Empréstimo | C32: 5 | D32: =D29-D34 -> 150 | E32: =D32-($D$32/$C$32) -> 120 | F32: =E32-($D$32/$C$32) -> 90 | G32: =F32-($D$32/$C$32) -> 60 | H32: =G32-($D$32/$C$32) -> 30 | I32: 0
B33: D, Dívida total | D33: =D31+D32 -> 150 | E33: 184 | F33: 155.92 | G33: 127.8976 | H33: 99.934528 | I33: 0
B34: E, Equity ou PL | D34: 50 | E34: =D34+E14-E24 -> 76 | F34: =E34+F14-F24 -> 78.464 | G34: =F34+G14-G24 -> 82.72384 | H34: =G34+H14-H24 -> 86.7554528 | I34: =H34+I14-I24 -> 90.52136691
B35: Financiamento | D35: =D33+D34 -> 200 | E35: 260 | F35: 234.384 | G35: 210.62144 | H35: 186.6899808 | I35: 90.52136691
C36: Caixa excedente (+) ou crédito necessário (-) | D36: =D35-D29 -> 0 | E36: 20 | F36: 31.984 | G36: 45.74944 | H36: 59.2718208 | I36: 90.52136691 | J36: Total
C37: Fluxo de caixa anual para acionista | E37: =E36-D36+E24 -> 20 | F37: =F36-E36+F24 -> 32.784 | G37: =G36-F36+G24 -> 32.37664 | H37: =H36-G36+H24 -> 31.8192128 | I37: =I36-H36+I24 -> 49.11230195 | J37: =SUM(E37:I37) -> 166.0921548
B39: Cálculo do FC acionista | D39: =D63 -> 0 | E39: 1 | F39: 2 | G39: 3 | H39: 4 | I39: 5 | M39: Perpetuity
B40: ± Variação de AL, ativo líq. | D40: -200 | E40: -40 | F40: 37.6 | G40: 37.528 | H40: 37.45384 | I40: 127.41816 | M40: K | N40: g
B41: ± Variação de Dívida | D41: =D33 -> 150 | E41: =E33-D33 -> 34 | F41: =F33-E33 -> -28.08 | G41: =G33-F33 -> -28.0224 | H41: =H33-G33 -> -27.963072 | I41: =I33-H33 -> -99.934528 | M41: 0.2 | N41: 0
B42: Lucro Líquido | D42: =D14 -> 0 | E42: 26 | F42: 23.264 | G42: 22.87104 | H42: 22.3284448 | I42: 21.62866995 | J42: Total | M42: Benef neto | N42: =I14 -> 21.62866995
B43: FC acionista | D43: =SUM(D40:D42) -> -50 | E43: 20 | F43: 32.784 | G43: 32.37664 | H43: 31.8192128 | I43: 49.11230195 | J43: =SUM(E43:I43) -> 166.0921548 | M43: Perpetuity = | N43: =N42/(M41-N41) -> 108.1433498
D45: TIR = | E45: =IRR(D43:I43) -> 0.502923009 | H45: TIR do ativo = | I45: 0.19
B47: Riscos. Análise de Sensibilidade | C47: Base | D47: Pior | E47: Melhor | F47: Intervalo | I47: Não é necessário calculá-lo.
B48: Nível de Vendas | C48: 400 | D48: 300 | E48: 500 | H48: K = | I48: 0.2
B49: TIR Acionista | C49: 0.5 | D49: 0.11 | E49: 0.85 | F49: =(E49-D49)*100 -> 74 | H49: VP = | I49: =NPV(I48,E43:I43) -> 93.25186106
B50: Crescimento Vendas g | C50: 0.03 | D50: 0 | E50: 0.06 | H50: VPL = | I50: =I49+D43 -> 43.25186106
B51: TIR Acionista | C51: =C49 -> 0.5 | D51: 0.45 | E51: 0.55 | F51: =(E51-D51)*100 -> 10
B52: Queda de margem | C52: -0.01 | D52: -0.02 | E52: 0 | H52: TIR e Dívida
B53: TIR Acionista | C53: =C51 -> 0.5 | D53: 0.41 | E53: 0.58 | F53: =(E53-D53)*100 -> 17 | H53: PL | J53: TIR
B54: Crescimento de Opex | C54: 0.03 | D54: 0.06 | E54: 0 | H54: 75% ou €150M | J54: 0.23
B55: TIR Acionista | C55: =C53 -> 0.5 | D55: 0.49 | E55: 0.52 | F55: =(E55-D55)*100 -> 3 | H55: 50% ou €100M | J55: 0.31
B56: TIR, em Base, Pior & Melhor | C56: =C55 -> 0.5 | D56: -0.19 | E56: 0.98 | F56: =(E56-D56)*100 -> 117 | H56: 25% ou €50M | J56: 0.5
J58: © E.M. Abascal. Sept. 2023
B60: Se quiser fazer mais cálculos, você pode calcular o FCF. Você verá que o FCF = FC acion, se a dívida for 0.
D62: =D26 -> 2024 | E62: 2025 | F62: 2026 | G62: 2027 | H62: 2028 | I62: 2029 | L62: Perpetuidade
B63: Cálculo do FCF ou FC do ativo | D63: 0 | E63: 1 | F63: 2 | G63: 3 | H63: 4 | I63: 5 | L63: K | M63: g
B64: ± Variação do AL, ativo líquido | D64: =-D29 -> -200 | E64: =D29-E29 -> -40 | F64: =E29-F29 -> 37.6 | G64: =F29-G29 -> 37.528 | H64: =G29-H29 -> 37.45384 | I64: =H29-I29 -> 127.41816 | L64: 0.2 | M64: 0
B65: +EBIT x (1-t) | E65: =E10*(1-$C$13) -> 32 | F65: =F10*(1-$C$13) -> 30.624 | G65: =G10*(1-$C$13) -> 29.10784 | H65: =H10*(1-$C$13) -> 27.4443488 | I65: =I10*(1-$C$13) -> 25.62605107 | L65: EBIT | M65: =I10 -> 32.03256384
B66: FCF ou FC ativo | D66: =D64+D65 -> -200 | E66: -8 | F66: 68.224 | G66: 66.63584 | H66: 64.8981888 | I66: 153.0442111 | L66: Perpetuidade = | M66: =M65/(L64-M64) -> 160.1628192
B68: FCF. VP con | C68: Ka = | D68: 0.2 | E68: VP = | F68: =NPV(D68,E66:I66) -> 172.0759063 | G68: TIR = | H68: =IRR(D66:I66) -> 0.1525076095 | I68: VPL = | J68: =F68+D66 -> -27.92409367
J76: =J58 -> © E.M. Abascal. Sept. 2023

Sheet Anexo 4 FAZER (hidden)
E1: Proyecto DEC. HACER
B2: Todas as hipóteses em negrito e verde. Veja as notas explicativas dentro de cada célula.
B3: DRE (milhões €) | C3: Hipóteses | E3: 2025 | F3: =E3+1 -> 2026 | G3: =F3+1 -> 2027 | H3: =G3+1 -> 2028 | I3: =H3+1 -> 2029 | L3: Base | M3: Pior | N3: Melhor
B4: Vendas | C4: 400 | E4: =C4 -> 400 | L4: 400 | M4: 300 | N4: 500
B5: CMV
B6: Margem bruta
B7: Despesas Gerais (Opex) | C7: 20
B8: EBITDA
B9: Depreciação | C9: 40
B10: EBIT
B11: Despesas financeiras, líquidas | C11: 0.05
B12: EBT
B13: Impostos | C13: 0.2 | J13: Total
B14: LL, Lucro líquido | J14: =SUM(E14:I14) -> 0
B16: Índices do DRE | J16: Media | L16: Base | M16: Pior | N16: Melhor
B17: Crescimento de vendas | C17: 0.03 | E17: nd | F17: =$C17 -> 0.03 | G17: =$C17 -> 0.03 | H17: =$C17 -> 0.03 | I17: =$C17 -> 0.03 | J17: =AVERAGE(F17:J17) -> 0.03 | L17: 0.03 | M17: 0 | N17: 0.06
B18: Margem bruta / Vendas | C18: -0.01 | E18: 0.25 | F18: =E18+$C18 -> 0.24 | G18: =F18+$C18 -> 0.23 | H18: =G18+$C18 -> 0.22 | I18: =H18+$C18 -> 0.21 | J18: =AVERAGE(E18:J18) -> 0.23 | L18: -0.01 | M18: -0.02 | N18: 0
B19: Incremento das Despesas Gerais (GG) | C19: 0.03 | E19: nd | F19: =$C19 -> 0.03 | G19: =$C19 -> 0.03 | H19: =$C19 -> 0.03 | I19: =$C19 -> 0.03 | J19: =AVERAGE(F19:J19) -> 0.03 | L19: 0.03 | M19: 0.06 | N19: 0
B20: EBITDA / Vendas
B21: ROS (Lucro / Vendas)
B22: ROE (Lucro / Equity)
B23: ROA (EBIT / Ativo líquido)
B24: Dividendos pagos | C24: 0.8
B26: Balanço (Mill €) | C26: Hipóteses | D26: =E26-1 -> 2024 | E26: =E3 -> 2025 | F26: =F3 -> 2026 | G26: =G3 -> 2027 | H26: =H3 -> 2028 | I26: =I3 -> 2029
B27: NOF | C27: 0.2
B28: AF, ativo fixo líquido | C28: 0 | D28: 200
B29: AL, ativo líquido | D29: =D27+D28 -> 200
B31: D-C Linha de crédito | C31: 0.8
B32: D-L Empréstimo | C32: 5 | D32: =D29-D34 -> 150
B33: D, Dívida total | D33: =D31+D32 -> 150
B34: E, Equity ou PL | D34: 50
B35: Financiamento | D35: =D33+D34 -> 200
C36: Caixa excedente (+) ou crédito necessário (-) | D36: =D35-D29 -> 0 | J36: Total
C37: Fluxo de caixa anual para acionista | J37: =SUM(E37:I37) -> 0
B39: Cálculo do FC acionista | D39: =D63 -> 0 | E39: 1 | F39: 2 | G39: 3 | H39: 4 | I39: 5 | M39: Perpetuidade
B40: ± Variação de AL, ativo líq. | M40: K | N40: g
B41: ± Variação de Dívida | M41: 0.2 | N41: 0
B42: Lucro Líquido | J42: Total | M42: Lucro Líq. | N42: =I14 -> 0
B43: FC acionista | J43: =SUM(E43:I43) -> 0 | M43: Perpetuidade = | N43: =N42/(M41-N41) -> 0
D45: TIR = | E45: =IRR(D43:I43) ->  | H45: TIR do ativo =
B47: Riscos. Análise de Sensibilidade | C47: Base | D47: Malo | E47: Bueno | F47: Rango | I47: Não é necessário calculá-lo.
B48: Nível de Vendas | C48: 400 | D48: 300 | E48: 500 | H48: K = | I48: 0.2
B49: TIR Acionista | F49: =(E49-D49)*100 -> 0 | H49: VP = | I49: =NPV(I48,E43:I43) -> 0
B50: Crescimento Vendas g | C50: 0.03 | D50: 0 | E50: 0.06 | H50: VPL = | I50: =I49+D43 -> 0
B51: TIR Acionista | F51: =(E51-D51)*100 -> 0
B52: Queda de margem | C52: -0.01 | D52: -0.02 | E52: 0 | H52: TIR e Dívida
B53: TIR Acionista | F53: =(E53-D53)*100 -> 0 | H53: PL | J53: TIR
B54: Crescimento de Opex | C54: 0.03 | D54: 0.06 | E54: 0 | H54: 75% ou €150M
B55: TIR Acionista | F55: =(E55-D55)*100 -> 0 | H55: 50% ou €100M
B56: TIR, em Base, Pior & Melhor | C56: =C55 -> 0 | D56: -0.19 | E56: 0.98 | F56: =(E56-D56)*100 -> 117 | H56: 25% ou €50M
J58: © E.M. Abascal. Sept. 2023
B60: Se quiser fazer mais cálculos, você pode calcular o FCF. Você verá que o FCF = FC acion, se a dívida for 0.
D62: =D26 -> 2024 | E62: 2025 | F62: 2026 | G62: 2027 | H62: 2028 | I62: 2029 | L62: Perpetuidade
B63: Cálculo do FCF ou FC do ativo | D63: 0 | E63: 1 | F63: 2 | G63: 3 | H63: 4 | I63: 5 | L63: K | M63: g
B64: ± Variação do AL, ativo líquido | D64: =-D29 -> -200 | E64: =D29-E29 -> 200 | F64: =E29-F29 -> 0 | G64: =F29-G29 -> 0 | H64: =G29-H29 -> 0 | I64: =H29-I29 -> 0 | L64: 0.2 | M64: 0
B65: +EBIT x (1-t) | E65: =E10*(1-$C$13) -> 0 | F65: =F10*(1-$C$13) -> 0 | G65: =G10*(1-$C$13) -> 0 | H65: =H10*(1-$C$13) -> 0 | I65: =I10*(1-$C$13) -> 0 | L65: EBIT | M65: =I10 -> 0
B66: FCF ou FC ativo | D66: =D64+D65 -> -200 | E66: 200 | F66: 0 | G66: 0 | H66: 0 | I66: 0 | L66: Perpetuidade = | M66: =M65/(L64-M64) -> 0
B68: FCF. VP con | C68: Ka = | D68: 0.2 | E68: VP = | F68: =NPV(D68,E66:I66) -> 166.6666667 | G68: TIR = | H68: =IRR(D66:I66) -> 0 | I68: VPL = | J68: =F68+D66 -> -33.33333333
J76: =J58 -> © E.M. Abascal. Sept. 2023
